Cogmind - Beta 16 @@@ ROGUE MODE // 2025.11.08 @ 23:56:55 Player: Bikerider58 Result: Defending 0bPrime! Performance ------------- Evolutions (8) 4000 Regions Visited (32) 6400 Robots Destroyed (320) 1600 Value Destroyed (18839) 18839 Prototype IDs (149) 2980 Alien Tech Used (6) 1200 Bonus (30189) 30189 TOTAL SCORE: 65208 Bonus ------- High Alert Combat Kills 8395 Follower Combat Kills 1419 Registered with UFD 300 Met Optimus in HQ 500 Destroyed Z-Imprinter 1000 Met Zhirov 300 Met Warlord at Base 500 MAIN.C Attacked Warlord 500 Warlord Defense Kills 1054 Hacked Protovariant 500 Met Optimus at Protoforge 1000 Executed Drillbomb Mission 10000 Optimus Survived to 0b1 3000 Win 3000 Friendly Fire -1279 Cogmind --------- Core Integrity 532/1450 Matter 300/300 Energy 600/600 System Corruption 14% Temperature Cool (0) Movement Walking (105) Location 0bPrime Parts ------- > --- POWER (2) -------- Improved Quantum Reactor Improved Quantum Reactor > --- PROPULSION (8) --- Biometal Leg Improved Thunder Leg Enhanced Biometal Leg Enhanced Biometal Leg Enhanced Biometal Leg Enhanced Biometal Leg > --- UTILITY (11) ----- Experimental Heat Sink 2N-1CE's Frost Array Large Storage Unit Experimental Targeting Computer Experimental Targeting Computer Experimental Target Analyzer Experimental Core Analyzer Experimental Core Analyzer Experimental Armor Integrity Analyzer Heavy Armor Plating > --- WEAPON (2) ------- Helical Railgun Hypervelocity Multirail > --- INVENTORY (15) --- Light Particle Reactor Shield Leg Advanced Kinecellerator Concept XC Strikerail Peak State ------------ > --- POWER ------------ Vortex Chain Reactor > --- PROPULSION ------- Cooled Antigrav System Cooled Antigrav System Combat Linear Gravjet Combat Linear Gravjet Combat Linear Gravjet Combat Linear Gravjet Combat Linear Gravjet Combat Linear Gravjet > --- UTILITY ---------- Large Storage Unit Zionite Metafield Generator Enhanced Optical Array Experimental Signal Interpreter Experimental Terrain Scan Processor Advanced Targeting Computer Experimental Targeting Computer Experimental Core Analyzer Advanced Reaction Control System Layered Medium Armor Plating Gun Armor > --- WEAPON ----------- Tri-rail Accelerator Sigix Broadsword > --- INVENTORY -------- Combat Linear Gravjet 2N-1CE's Frost Array Advanced Sensor Array Surveybot 24 Scanner Experimental Cloaking Device Experimental Propulsion Shielding Dimensional Node Initializer Transdimensional Reconstructor Terrabomb Vortex Driver Hypervelocity Multirail Hypervelocity Multirail Tri-rail Accelerator Long-range Missile Launcher [Rating: 219] Favorites ----------- Power Vortex Chain Reactor Engine Light Angular Momentum Engine Power Core Light Nuclear Core Reactor Vortex Chain Reactor Propulsion Combat Linear Gravjet Treads Light Treads Leg Enhanced Biometal Leg Wheel Wheel Hover Unit Combat Linear Gravjet Flight Unit Xenon Bombardment Thruster Utility Large Storage Unit Device Advanced Sensor Array Storage Large Storage Unit Processor Advanced Visual Processing Unit Hackware Advanced Hacking Suite Protection Makeshift Light Armor Plating Weapon Barrage Gun Energy Gun Zionite Laser-M Energy Cannon Long-range Proton Cannon Ballistic Gun Barrage Gun Ballistic Cannon Tri-rail Accelerator Launcher Mini Grenade Launcher Special Weapon Multitool Impact Weapon Impact Mace Slashing Weapon Great Axe Piercing Weapon Heavy Pick Build | -11 -10 -10 -10 -9 -9 -6 -6 -6 -6 -6 -6 -6 -5 -5 -5 -5 -5 -5 -5 -4 -4 -4 -4 -4 -4 -4 -3 -3 -3 -2 -2 -2 ------- Run | Yrd Mat Min Sub Rec Scr Fac Was Fac Low Low Zio Dee Pro Fac Was Fac Upp Upp War Pro Fac Was Fac Upp Upp Zhi Pro Res Tes Res Qua Frg Slots Evolved 16 | . . . . . . 8 . . . . . . . 2 . . . . . . 2 . . . . . . 2 . 2 . . Power 1 | . . . . . . . . . . . . . . . . . . . . . 1 . . . . . . . . . . . Propulsion 6 | . . . . . . 3 . . . . . . . . . . . . . . 1 . . . . . . 1 . 1 . . Utility 9 | . . . . . . 5 . . . . . . . 2 . . . . . . . . . . . . . 1 . 1 . . Weapon . | . . . . . . . . . . . . . . . . . . . . . . . . . . . . . . . . . Parts Attached 257 | 8 6 3 13 1 17 18 . 9 5 . 4 30 3 14 1 9 2 5 9 3 14 2 8 . . 2 . 4 6 4 2 55 Power 29 | 1 1 . 1 1 6 1 . 1 . . . 4 1 . . . . . . 2 1 1 . . . . . . . . . 8 Engine 10 | 1 . . 1 1 4 1 . 1 . . . 1 . . . . . . . . . . . . . . . . . . . . Core 5 | . 1 . . . 2 . . . . . . . . . . . . . . 2 . . . . . . . . . . . . Reactor 14 | . . . . . . . . . . . . 3 1 . . . . . . . 1 1 . . . . . . . . . 8 Propulsion 62 | 2 . . 3 . 8 4 . 4 . . . 7 1 3 1 . 1 1 3 1 3 . 2 . . . . 1 . 1 . 16 Treads 7 | 2 . . 2 . 2 1 . . . . . . . . . . . . . . . . . . . . . . . . . . Leg 13 | . . . . . 1 . . . . . . . . . . . . . . . . . . . . . . . . . . 12 Wheel 3 | . . . 1 . 1 1 . . . . . . . . . . . . . . . . . . . . . . . . . . Hover 36 | . . . . . 2 2 . 3 . . . 7 1 3 1 . 1 1 3 1 3 . 2 . . . . 1 . 1 . 4 Flight 3 | . . . . . 2 . . 1 . . . . . . . . . . . . . . . . . . . . . . . . Utility 116 | 3 3 1 2 . 2 10 . 2 4 . 2 15 1 8 . 7 1 2 4 . 6 1 5 . . 2 . 3 6 1 . 25 Device 44 | 2 1 . 1 . 2 4 . 1 3 . 1 5 . 3 . 3 . 2 2 . 2 1 1 . . . . 1 2 . . 7 Storage 6 | 1 1 . . . . . . . . . . 1 1 . . . . . . . 1 . . . . 1 . . . . . . Processor 27 | . 1 1 . . . 4 . . . . . . . 1 . . 1 . 1 . 1 . . . . . . 2 4 . . 11 Hackware 15 | . . . . . . 1 . 1 . . 1 1 . 2 . 4 . . . . 2 . 3 . . . . . . . . . Protection 24 | . . . 1 . . 1 . . 1 . . 8 . 2 . . . . 1 . . . 1 . . 1 . . . 1 . 7 Artifact . | . . . . . . . . . . . . . . . . . . . . . . . . . . . . . . . . . Weapon 50 | 2 2 2 7 . 1 3 . 2 1 . 2 4 . 3 . 2 . 2 2 . 4 . 1 . . . . . . 2 2 6 Energy Gun 5 | . . . . . . . . . . . 2 3 . . . . . . . . . . . . . . . . . . . . Energy Cannon 9 | . . . . . . . . 2 . . . . . 1 . . . . 2 . 2 . 1 . . . . . . 1 . . Ballistic Gun 15 | 2 1 1 4 . . . . . . . . . . . . . . . . . . . . . . . . . . . 1 6 Ballistic Cannon 5 | . . . . . . 1 . . . . . . . . . . . 2 . . 1 . . . . . . . . 1 . . Launcher 4 | . . 1 . . 1 . . . 1 . . . . 1 . . . . . . . . . . . . . . . . . . Special Weapon 5 | . . . 2 . . . . . . . . 1 . 1 . . . . . . 1 . . . . . . . . . . . Impact Weapon 4 | . 1 . 1 . . 2 . . . . . . . . . . . . . . . . . . . . . . . . . . Slashing Weapon 2 | . . . . . . . . . . . . . . . . 1 . . . . . . . . . . . . . . 1 . Piercing Weapon 1 | . . . . . . . . . . . . . . . . 1 . . . . . . . . . . . . . . . . Special Melee Weapon . | . . . . . . . . . . . . . . . . . . . . . . . . . . . . . . . . . Unidentified Prototypes 44 | . . . 1 . . 1 . 1 1 . 1 11 1 1 . . . . 5 . 2 . . . . 3 . . 2 . 5 9 Parts Lost 70 | . . . 3 . . 1 . 1 . . . 11 2 3 1 1 2 1 . 3 2 . 1 . . . . . . . . 38 Power 6 | . . . . . . . . . . . . 1 . . . . . . . 1 . . . . . . . . . . . 4 Propulsion 25 | . . . 2 . . . . . . . . 4 2 . 1 . 1 . . 1 . . . . . . . . . . . 14 Utility 28 | . . . . . . 1 . 1 . . . 5 . 2 . . 1 . . 1 . . 1 . . . . . . . . 16 Weapon 11 | . . . 1 . . . . . . . . 1 . 1 . 1 . 1 . . 2 . . . . . . . . . . 4 Highest Loss Streak 9 | . . . 1 . . 1 . 1 . . . 6 1 1 1 1 1 1 . 2 2 . 1 . . . . . . . . 9 To Critical Strikes 3 | . . . . . . . . . . . . . . . . . . . . . . . . . . . . . . . . 3 Average Backups 13 | 1 13 15 14 13 11 13 14 13 14 14 15 14 14 14 13 13 13 13 13 13 13 15 14 14 14 14 14 13 13 14 13 6 Power . | . 1 1 . . . . . . 1 1 1 . . . . . . . . 1 . . 1 1 1 . . . . . . . Propulsion 1 | . 3 2 . 1 . 2 4 3 2 2 2 2 1 1 . . 1 1 1 1 . 2 1 2 2 2 2 1 1 . 1 . Utility 6 | . 1 4 4 5 4 6 7 5 8 7 7 9 11 9 9 9 9 9 9 8 9 9 8 8 8 8 8 8 8 7 5 1 Weapon 3 | 1 5 8 7 6 3 1 1 1 1 2 2 1 1 3 3 2 2 2 1 2 2 2 2 3 3 3 3 3 3 5 5 3 Tool/Special . | . . . . . . . . . . . . . . . . . . . . . . . . . . . . . . . . . Unused Backups 71 | . 11 . 11 1 7 3 1 4 . 1 1 3 1 5 . 2 . 1 . . 2 . 3 . . 2 . . 2 1 3 6 Power 4 | . 1 . . . . 1 . . . . . . . . . . . 1 . . . . . . . . . . . . . 1 Propulsion 12 | . 5 . . . 1 . . 3 . . . . . 1 . 1 . . . . . . . . . . . . . . . 1 Utility 25 | . . . 5 1 . 1 1 1 . 1 1 3 . 1 . 1 . . . . 2 . 2 . . 2 . . 1 . 1 1 Weapon 25 | . 4 . 6 . 5 1 . . . . . . 1 3 . . . . . . . . . . . . . . 1 1 2 1 Tool/Special 5 | . 1 . . . 1 . . . . . . . . . . . . . . . . . 1 . . . . . . . . 2 Average Slot Usage (%) 91 | . 97 100 99 100 94 75 73 82 73 73 75 91 99 98 94 97 100 95 94 91 90 84 84 89 89 87 89 89 89 87 87 85 Engine 3 | . 6 . 8 14 6 6 6 6 6 6 6 1 . . . . . . . . . . . . . . . . . . . . Core 2 | . 7 14 5 . 7 . . . . . . . . . . . . . . 4 . . . . . . . . . . . . Reactor 2 | . . . . . . . . . . . . 4 6 5 5 5 5 5 5 . 4 5 5 5 5 5 5 4 4 4 4 6 Treads 9 | . 28 28 21 28 21 1 . . . . . . . . . . . . . . . . . . . . . . . . . . Wheel 1 | . . . 6 . . 6 . . . . . . . . . . . . . . . . . . . . . . . . . . Hover 16 | . . . . . 3 11 13 19 20 20 20 27 32 29 29 29 29 29 28 27 29 26 26 31 31 31 31 33 33 32 32 20 Device 8 | . 9 . 13 . 1 17 6 11 6 6 6 7 6 16 17 14 11 11 10 9 7 5 9 10 10 7 9 9 8 8 7 7 Storage 8 | . 14 14 14 14 10 6 6 6 6 6 6 10 13 5 5 5 5 5 5 5 5 5 5 5 5 5 5 4 4 4 4 4 Processor 10 | . 2 14 . . . 6 20 13 13 13 13 8 6 10 11 11 13 17 19 23 21 21 15 15 15 15 15 19 25 24 24 25 Hackware 3 | . . . . . . 1 6 6 6 6 6 6 6 10 11 13 14 11 8 5 9 10 10 10 10 10 10 3 . . . . Protection 6 | . . . . 14 14 5 6 6 6 6 6 8 13 5 5 5 5 4 5 5 2 5 4 5 5 6 5 8 5 7 8 5 Energy Gun 1 | . . . . . . . . . . . 3 12 13 6 5 3 . . 2 . . . . . . . . . . . . . Ballistic Gun 9 | . 27 27 14 28 25 2 . . . . . . . . . . . . . . . . . . . . . . . . . 6 Impact Weapon 1 | . . . 7 . . 5 6 6 5 5 4 . . . . . . . . . . . . . . . . . . . . . Peak Build Rating 219 | 7 12 11 19 19 26 68 64 74 75 73 79 101 97 110 87 100 100 102 122 122 144 142 152 150 148 149 149 164 170 200 219 219 Average Rating 80 | 5 8 10 15 18 22 53 63 68 71 72 74 88 94 96 87 92 95 92 104 116 137 141 146 148 148 147 148 160 163 197 213 194 On Entrance 95 | . 7 11 10 18 19 26 64 64 69 72 73 78 96 89 87 87 97 94 88 122 120 142 142 150 150 148 149 148 159 168 200 219 Avg Prop Armor Cover (%) 8 | . . . 12 . 6 5 . . . . . . . . . . . . . 2 . . . . . . . . . 2 . 6 Naked Turns . | . . . . . . . . . . . . . . . . . . . . . . . . . . . . . . . . . Heaviest Build 110 | 13 32 29 35 37 43 50 36 48 53 53 55 58 53 61 47 58 54 58 69 61 79 79 82 82 80 82 82 85 85 103 103 110 Greatest Support 235 | 40 40 40 40 40 45 49 40 50 50 50 50 74 66 68 61 56 56 56 64 64 80 80 82 82 82 82 82 101 101 128 116 235 Greatest Overweight (x) 7 | 1 . . 3 . 7 2 . . 1 1 1 1 1 . . 1 1 1 1 . 1 . . . . . . . . 1 . 2 Average Overweight (x) . | . . . 1 . . . . . . . . . . . . . . . . . . . . . . . . . . . . . Largest Inventory Capacity 15 | 8 15 15 15 15 15 15 15 15 15 15 15 15 15 15 15 15 15 15 15 15 15 15 15 15 15 15 15 15 15 15 15 15 Average Capacity 14 | 7 14 15 15 15 12 15 15 15 15 15 15 15 15 15 15 15 15 15 15 15 15 15 15 15 15 15 15 15 15 15 15 15 Most Carried 15 | 3 15 15 15 15 15 15 15 15 15 15 15 15 15 15 15 15 15 15 15 15 15 15 15 15 15 15 15 15 15 15 15 15 Average Carried 13 | 1 13 15 14 14 12 14 14 14 14 14 14 14 14 14 14 14 14 14 14 14 14 14 14 15 15 14 15 14 14 14 14 11 Final Capacity 15 | 8 15 15 15 15 15 15 15 15 15 15 15 15 15 15 15 15 15 15 15 15 15 15 15 15 15 15 15 15 15 15 15 15 Final Carried 15 | 2 15 15 15 14 15 15 15 14 15 15 15 15 15 15 14 15 14 15 15 15 15 15 15 15 15 15 15 15 15 15 15 4 Class Distribution -------------------- 24% | Mutant 20% | Derelict-Mutant 14% | Hacker-Scout 9% | Scavenger-Mutant 7% | Scout 6% | Machinist-Scout 6% | Scavenger-Scout Dominant Class ---------------- Mutant | -10/Materials Mutant | -10/Mines Mutant | -10/Subcaves Derelict-Mutant | -9/Recycling Derelict-Mutant | -9/Scraptown Mutant | -6/Factory Scout | -6/Waste Ninja | -6/Factory Scout | -6/Lower Caves Scout | -6/Lower Caves Scout | -6/Zion Scavenger-Mutant | -6/Deep Caves Scavenger-Mutant | -5/Proximity Caves Scavenger-Scout | -5/Factory Scavenger-Scout | -5/Waste Scavenger-Scout | -5/Factory Hacker-Scout | -5/Upper Caves Hacker-Scout | -5/Upper Caves Hacker-Mutant | -5/Warlord Mutant | -4/Proximity Caves Hacker-Scout | -4/Factory Hacker-Scout | -4/Waste Hacker-Scout | -4/Factory Hacker-Scout | -4/Upper Caves Hacker-Scout | -4/Upper Caves Hacker-Scout | -4/Zhirov Hacker-Scout | -3/Proximity Caves Machinist-Scout | -3/Research Machinist-Scout | -3/Testing Machinist-Scout | -2/Research Machinist-Scout | -2/Quarantine Scavenger-Mutant | -2/Protoforge Resources | -11 -10 -10 -10 -9 -9 -6 -6 -6 -6 -6 -6 -6 -5 -5 -5 -5 -5 -5 -5 -4 -4 -4 -4 -4 -4 -4 -3 -3 -3 -2 -2 -2 ----------- Run | Yrd Mat Min Sub Rec Scr Fac Was Fac Low Low Zio Dee Pro Fac Was Fac Upp Upp War Pro Fac Was Fac Upp Upp Zhi Pro Res Tes Res Qua Frg Matter Collected 10431 | 251 337 36 329 30 141 257 . 315 177 105 98 469 66 316 . 62 311 255 308 317 272 335 659 47 13 250 269 85 256 343 322 3400 Remotely 26 | 26 . . . . . . . . . . . . . . . . . . . . . . . . . . . . . . . . Salvage Created 16152 | 93 686 26 240 68 . 123 . 309 106 56 . 188 91 714 . 86 215 144 274 255 347 215 358 . 7 . 88 126 325 312 230 10470 Parts 756 | 4 44 6 10 . . 3 . 14 9 8 . 13 6 57 . 7 4 6 13 6 21 4 8 . . . . 2 25 15 16 455 Haulers Intercepted 6 | . 1 . . . . . . 2 . . . . . 1 . . . . . . . . 1 . . . . 1 . . . . Recyclers Shooed 3 | . . . . . . 1 . . . . . . . . . . . . . . 1 . . . . . . . . 1 . . Parts Field Recycled . | . . . . . . . . . . . . . . . . . . . . . . . . . . . . . . . . . Retrieved Matter . | . . . . . . . . . . . . . . . . . . . . . . . . . . . . . . . . . Parts Self-Destructed 42 | . . . 14 . . . . . 3 4 . . 7 . . . 6 4 . 4 . . . . . . . . . . . . Prevented 29 | . . . . . . . . . 2 . . . 1 . . . 7 . . 16 . . . . 3 . . . . . . . Parts Restored . | . . . . . . . . . . . . . . . . . . . . . . . . . . . . . . . . . Kills | -11 -10 -10 -10 -9 -9 -6 -6 -6 -6 -6 -6 -6 -5 -5 -5 -5 -5 -5 -5 -4 -4 -4 -4 -4 -4 -4 -3 -3 -3 -2 -2 -2 ------- Run | Yrd Mat Min Sub Rec Scr Fac Was Fac Low Low Zio Dee Pro Fac Was Fac Upp Upp War Pro Fac Was Fac Upp Upp Zhi Pro Res Tes Res Qua Frg Combat Hostiles Destroyed 262 | . 17 3 2 . . 5 . . 5 6 . 3 4 14 . . 4 3 13 6 4 1 8 . . . 2 1 8 3 7 143 Melee 1 | . . . . . . 1 . . . . . . . . . . . . . . . . . . . . . . . . . . Guns 158 | . 17 . 2 . . . . . . . . 3 4 5 . . . . . . . . . . . . . . . . . 127 Cannons 61 | . . . . . . . . . . . . . . 1 . . . 3 1 6 4 1 8 . . . 2 1 8 3 7 16 AOE 40 | . . 3 . . . 4 . . 4 6 . . . 8 . . 3 . 12 . . . . . . . . . . . . . Classes Destroyed 34 | 2 6 . 3 . . 2 . . 1 . . 1 . 2 . . 1 2 2 . . 2 1 . . . . . . . . 9 Worker 13 | . 2 . . . . . . 1 . . . . . 2 . 3 . . . . 1 . 1 . . . . 1 1 . . 1 Builder 5 | . . . . . . 1 . 2 . . . . . 2 . . . . . . . . . . . . . . . . . . Tunneler 4 | 1 . . . . . . . 2 . . . . . 1 . . . . . . . . . . . . . . . . . . Hauler 6 | . 1 . . . . . . 2 . . . . . 1 . . . . . . . . 1 . . . . 1 . . . . Recycler 5 | 1 1 . . 1 . . . . . . . . . . . . . . . . 1 . . . . . . . . 1 . . Minesweeper 2 | . . . . . . . . . . . . . . . . . . 1 . . . . . . 1 . . . . . . . Mechanic 4 | . . . . . . . . . . . . . . 1 . . . . . 1 . . . . . . . . . 1 . 1 Operator 5 | . 1 . . . . . . 2 . . . . . 1 . 1 . . . . . . . . . . . . . . . . Drone 6 | . . . . . . . . . . . . . . . . . . . . . . . . . . . . . . . . 6 Turret 1 | . . . 1 . . . . . . . . . . . . . . . . . . . . . . . . . . . . . Watcher 8 | . 1 . . . . . . . . . . . . 1 . . . . . . . . 1 . . . . . . 1 1 3 Swarmer 72 | . 9 3 . . . 4 . . 4 6 . . 4 4 . . 3 . 6 2 . . 6 . . . . . 3 . 4 14 Saboteur 5 | . . . . . . . . . . . . . . . . . . . 2 . . . . . . . . . . . . 3 Grunt 43 | . 8 . . . . . . . . . . . . 3 . . . 1 3 2 . . 1 . . . . . . 1 . 24 Brawler 7 | . . . . . . . . . . . . . . . . . . . . . . . 1 . . . . . . . . 6 Duelist 4 | . . . . . . . . . . . . . . 1 . . . . . 1 . . . . . . . . . . . 2 Protector 6 | . . . . . . . . . . . . . . . . . . . . . . . . . . . . . . . . 6 Sentry 6 | . . . . . . . . . . . . . . . . . . 1 . . 1 . . . . . 2 . . . . 2 Specialist 2 | . . . . . . . . . . . . . . . . . . . 1 . . . . . . . . . . . . 1 Hunter 27 | . . . . . . . . . 1 . . . . 2 . . 1 . . 1 . . . . . . . . . . . 22 Programmer 28 | . . . . . . 1 . . . . . . . 4 . . . 1 1 1 3 . . . . . . 1 5 2 3 6 Behemoth 1 | . . . . . . . . . . . . . . . . . . . . . . . . . . . . . . . . 1 Compactor 1 | . . . . . . . . . . . . . . . . . . . . . . 1 . . . . . . . . . . Hotshot 16 | . . . . . . . . . . . . . . . . . . . . . . . . . . . . . . . . 16 Decapitator 5 | . . . . . . . . . . . . . . . . . . . . . . . . . . . . . . . . 5 Overlord 1 | . . . . . . . . . . . . . . . . . . . . . . . . . . . . . . . . 1 Striker 11 | . . . . . . . . . . . . . . . . . . . . . . . . . . . . . . . . 11 Executioner 15 | . . . . . . . . . . . . . . . . . . . . . . . . . . . . . . . . 15 Alpha 7 2 | . . . . . . . . . . . . . . . . . . . . . . . . . . . . . . . . 2 Artisan 1 | . . . 1 . . . . . . . . . . . . . . . . . . . . . . . . . . . . . Subdweller 2 | . . . 2 . . . . . . . . . . . . . . . . . . . . . . . . . . . . . Scrapoid 1 | . . . . . . . . . . . . . . . . . . . . . . . . . . . . . . . . 1 Z-Light 3 | . . . . . . . . . . . . 3 . . . . . . . . . . . . . . . . . . . . Samaritan 2 | . . . . . . . . . . . . . . . . . 2 . . . . . . . . . . . . . . . Wasp 2 | . . . . . . . . . . . . . . . . . . . . . . 2 . . . . . . . . . . Martyr 1 | . . . . . . . . . . . . . . . . . . . . . . 1 . . . . . . . . . . Best Kill Streak 27 | 2 4 3 2 1 . 4 . 2 4 3 . 1 4 8 . 1 3 1 7 4 3 1 7 . 1 . 1 1 5 3 4 27 Combat Bots Only 27 | . 3 3 2 . . 4 . . 4 3 . 1 4 4 . . 3 1 7 3 3 1 7 . . . 1 1 5 3 4 27 Max Kills in Single Turn 5 | 1 1 3 1 1 . 2 . 1 3 2 . 1 2 4 . 1 2 1 3 1 1 1 2 . 1 . 1 1 1 2 1 5 Gunslinging 1 | . . . . . . . . . . . . . 1 . . . . . . . . . . . . . . . . . . 1 Exploded 3 | . . 3 . . . 2 . . 3 2 . . . 3 . . 2 . 3 . . . . . . . . . . . . . Melee 1 | . . . . . . 1 . . . . . . . . . . . . . . . . . . . . . . . . . . Uniques/NPCs Destroyed 1 | . . . . . . . . . . . . 1 . . . . . . . . . . . . . . . . . . . . Z-Imprinter (-6/Deep Caves) Combat | -11 -10 -10 -10 -9 -9 -6 -6 -6 -6 -6 -6 -6 -5 -5 -5 -5 -5 -5 -5 -4 -4 -4 -4 -4 -4 -4 -3 -3 -3 -2 -2 -2 -------- Run | Yrd Mat Min Sub Rec Scr Fac Was Fac Low Low Zio Dee Pro Fac Was Fac Upp Upp War Pro Fac Was Fac Upp Upp Zhi Pro Res Tes Res Qua Frg Hostile Shots Fired 1147 | . 60 3 31 . . 106 . 1 18 5 . 60 15 47 . 12 21 11 7 59 18 . 36 . 4 . 6 6 29 13 18 561 Missed 442 | . 15 2 10 . . 54 . . 2 2 . 18 6 26 . 5 13 4 2 32 5 . 13 . 4 . 2 2 15 7 13 190 Deflected 17 | . . . . . . . . . . . . . . . . . . . . . . . . . . . . . . . . 17 Hits 705 | . 45 1 21 . . 52 . 1 16 3 . 42 9 21 . 7 8 7 5 27 13 . 23 . . . 4 4 14 6 5 371 Melee 9 | . . . . . . . . . . . . 1 . . . . . . . . . . 1 . . . . . . . . 7 Projectile 696 | . 45 1 21 . . 52 . 1 16 3 . 41 9 21 . 7 8 7 5 27 13 . 22 . . . 4 4 14 6 5 364 AOE 8 | . . . . . . . . . . . . . . 1 . . . . . . 1 . . . . . . . . 1 . 5 Critical Strikes 26 | . . . . . . . . . 1 . . . . . . . 1 . . 2 1 . . . . . . 1 . . . 20 Actively Blocked 3 | . . . . . . . . . . . . . . . . . . . . . . . . . . . . 1 . . . 2 Part Disruptions 1 | . . . . . . . . . . . . . . . . . . 1 . . . . . . . . . . . . . . Damage Taken 16662 | . 448 10 368 . . 481 . 20 213 51 . 1529 146 404 30 142 200 193 110 542 393 . 404 . . . 99 101 325 263 118 10072 Core 1808 | . 91 10 94 . . 97 . 20 11 . . 93 15 56 . 40 47 39 . 112 45 . 71 . . . 25 51 68 . 20 803 Absorbed by Shields 123 | . . . . . . 28 . . 66 . . . . . . . . . 29 . . . . . . . . . . . . . Redirected to Shielding 745 | . . . . . . . . . . . . 12 . . . . . . . . . . . . . . 20 44 81 . . 588 Regen/Repaired (Parts) 890 | . 10 . . . . . . . . . . . . . . . . . 126 . 172 45 177 . . . . . 123 . . 237 Core Remaining (%) 68 | 100 . . . . 22 . . . . . . . 72 . . . . . . 70 . . . . . . 87 . 90 . . 36 Volleys Fired 823 | 7 69 2 35 . . 4 . 27 6 4 1 29 5 85 . 21 20 12 10 35 55 17 38 1 3 . 10 11 26 20 17 253 Largest 3 | 2 2 2 2 . . 1 . 1 1 1 2 2 2 2 . 1 1 1 1 1 1 1 1 1 1 . 1 1 1 2 2 3 Hottest 162 | 40 40 40 100 . . 40 . 85 85 43 162 162 146 154 . 81 81 60 100 60 105 60 98 60 60 . 60 60 60 120 120 132 Shots Fired 1203 | 14 138 3 46 . . 4 . 27 6 4 2 54 10 104 . 20 21 13 10 35 55 17 38 1 3 . 10 11 26 25 22 484 Gun 766 | 14 138 2 28 . . . . . . . 2 50 10 91 . 18 . . . . . . . . . . . . . . . 413 Cannon 385 | . . . . . . 1 . 27 4 . . . . 6 . 2 18 13 2 35 53 17 38 1 3 . 10 11 26 25 22 71 Launcher 33 | . . 1 6 . . 3 . . 2 4 . 2 . 4 . . 3 . 8 . . . . . . . . . . . . . Special 19 | . . . 12 . . . . . . . . 2 . 3 . . . . . . 2 . . . . . . . . . . . Kinetic 869 | 14 138 2 28 . . 1 . . . . . . . . . . . 13 1 35 9 17 36 1 3 . 10 11 26 20 22 482 Thermal 268 | . . . 12 . . . . 27 4 . 2 50 10 94 . 18 . . . . 44 . 2 . . . . . . 5 . . Explosive 33 | . . 1 6 . . 3 . . 2 4 . 2 . 4 . . 3 . 8 . . . . . . . . . . . . . Electromagnetic 26 | . . . . . . . . . . . . . . 6 . 2 18 . . . . . . . . . . . . . . . Entropic 3 | . . . . . . . . . . . . . . . . . . . 1 . . . . . . . . . . . . 2 Robot Hit Streak 63 | 3 16 2 8 . . 1 . 2 1 2 . 5 4 11 . 3 7 9 9 5 6 9 6 2 7 . 6 11 15 6 11 63 Robot Miss Streak 6 | 2 3 1 2 . . 1 . 2 1 1 . 5 4 4 . 3 4 2 1 4 2 5 6 2 2 . 2 2 3 4 2 5 Penetration Max 3 | . . . . . . . . . . . . . . . . . . . . . . . . . . . . . . . . 3 Secondary Targets 19 | . . . 1 . . . . . . . . . 1 . . . . . . . . . . . . . . . . . . 17 Max Gunslinging Chain 1 | . . . 1 . . . . . . . . . 1 . . . . . . . . . . . . . . . . . . 1 Shots Hit Robots 808 | 9 98 2 30 . . 5 . 11 4 2 . 22 6 26 . 7 10 11 7 26 12 16 28 1 3 . 9 9 13 16 17 408 Core Hits 613 | 4 43 4 16 . . 6 . 2 4 7 . 13 4 35 . 3 5 7 28 17 9 15 18 1 1 . 7 7 14 12 16 315 Critical Kills 104 | . . . . . . . . . . . . . . . . . . . . . . . . . . . . . . . . 104 Critical Parts Destroyed 105 | . . . . . . 1 . 2 . . . . . . . . . . . . . . . . . . . . . . . 102 Critical Strikes 229 | . . . . . . 1 . 2 . . . 1 . . . . . 1 . 2 . . 3 . 1 . . 1 1 . . 216 Burn 1 | . . . . . . . . . . . . 1 . . . . . . . . . . . . . . . . . . . . Destroy 210 | . . . . . . . . . . . . . . . . . . . . . . . . . . . . . . . . 210 Blast 15 | . . . . . . . . . . . . . . . . . . 1 . 2 . . 3 . 1 . . 1 1 . . 6 Smash 3 | . . . . . . 1 . 2 . . . . . . . . . . . . . . . . . . . . . . . . Melee Attacks 97 | . 1 . 32 . . 14 . 11 7 . . . . . . 15 5 . . . . . . . . . . . . . 9 3 Impact 65 | . 1 . 32 . . 14 . 11 7 . . . . . . . . . . . . . . . . . . . . . . . Slashing 26 | . . . . . . . . . . . . . . . . 9 5 . . . . . . . . . . . . . 9 3 Piercing 6 | . . . . . . . . . . . . . . . . 6 . . . . . . . . . . . . . . . . Sneak Attacks 13 | . . . 1 . . 1 . 7 . . . . . . . 3 . . . . . . . . . . . . . . . 1 Combat Hostiles . | . . . . . . . . . . . . . . . . . . . . . . . . . . . . . . . . . Follow-up Attacks . | . . . . . . . . . . . . . . . . . . . . . . . . . . . . . . . . . Damage Inflicted 32358 | 73 989 148 1005 4 . 580 . 908 427 569 . 908 202 3139 . 427 696 487 1524 1264 436 1054 1313 58 150 . 553 636 805 937 931 12135 Guns 11366 | 73 986 11 269 . . . . . . . . 606 202 863 . 34 . . . . . . . . . . . . . . . 8322 Cannons 12933 | . . . . . . . . 70 . . . . . 110 . 84 315 487 97 1264 436 1054 1313 58 150 . 553 636 805 886 931 3684 Explosions 5669 | . . 124 113 . . 315 . . 272 569 . 302 . 2166 . . 381 . 1427 . . . . . . . . . . . . . Melee 2313 | . . . 623 . . 265 . 838 155 . . . . . . 309 . . . . . . . . . . . . . . . 123 Ramming 77 | . 3 13 . 4 . . . . . . . . . . . . . . . . . . . . . . . . . 51 . 6 Kinetic 21422 | 73 986 11 269 . . . . . . . . . . . . . . 487 97 1264 102 1054 1279 58 150 . 553 636 805 841 931 11826 Thermal 2188 | . . . . . . . . 70 . . . 606 202 863 . 34 . . . . 334 . 34 . . . . . . 45 . . Explosive 5622 | . . 124 113 . . 315 . . 272 569 . 302 . 2166 . . 334 . 1427 . . . . . . . . . . . . . Electromagnetic 556 | . . . . . . . . . . . . . . 110 . 84 362 . . . . . . . . . . . . . . . Impact 1881 | . . . 623 . . 265 . 838 155 . . . . . . . . . . . . . . . . . . . . . . . Slashing 339 | . . . . . . . . . . . . . . . . 216 . . . . . . . . . . . . . . . 123 Piercing 93 | . . . . . . . . . . . . . . . . 93 . . . . . . . . . . . . . . . . Entropic 180 | . . . . . . . . . . . . . . . . . . . . . . . . . . . . . . . . 180 Highest Corruption 14 | . . . . . . 3 10 10 10 5 5 9 9 2 12 12 7 7 7 1 2 2 . . . . . . 1 . . 14 Average Corruption 6 | . . . . . . 2 8 10 6 5 5 9 9 1 7 7 7 7 1 1 1 1 . . . . . . 1 . . 8 Corruption Purged 14 | . . . . . . . . . 5 . . . . . . 7 . . . . . 2 . . . . . . . . . . Corruption Blocked . | . . . . . . . . . . . . . . . . . . . . . . . . . . . . . . . . . Effects 179 | . . . . . . 3 3 26 12 7 1 20 7 1 1 27 10 13 1 2 2 2 . . . . . . 3 . . 38 Message Errors 45 | . . . . . . 1 1 8 3 . . 9 3 . . 5 1 3 1 . . . . . . . . . . . . 10 Matter Fused 49 | . . . . . . 1 . 9 3 6 1 5 1 1 . 6 4 1 . 1 2 1 . . . . . . 1 . . 6 Heat Flow Errors 17 | . . . . . . . . 3 2 . . 1 1 . . 4 . 2 . . . . . . . . . . . . . 4 Energy Discharges 22 | . . . . . . 1 . 3 1 . . 3 . . . 4 2 2 . . . 1 . . . . . . 2 . . 3 Parts Rejected 1 | . . . . . . . 1 . . . . . . . . . . . . . . . . . . . . . . . . . Parts Fused 4 | . . . . . . . . 1 1 . . . . . . 1 . . . . . . . . . . . . . . . 1 Data Loss (minor) 23 | . . . . . . . . 1 1 . . 1 2 . 1 5 2 3 . 1 . . . . . . . . . . . 6 Data Loss (major) 7 | . . . . . . . . . 1 . . 1 . . . 1 . 1 . . . . . . . . . . . . . 3 Misfires 2 | . . . . . . . . . . . . . . . . . 1 1 . . . . . . . . . . . . . . Alerts 1 | . . . . . . . . . . 1 . . . . . . . . . . . . . . . . . . . . . . Misdirections 3 | . . . . . . . 1 1 . . . . . . . . . . . . . . . . . . . . . . . 1 Weapon Failures 5 | . . . . . . . . . . . . . . . . 1 . . . . . . . . . . . . . . . 4 Overload Shots . | . . . . . . . . . . . . . . . . . . . . . . . . . . . . . . . . . Overflow Damage 1879 | . . . 121 . . 166 . 565 67 109 . 8 . 137 . 101 98 11 220 12 . 13 37 . 28 . 11 . 16 27 10 122 Projectiles 217 | . . . . . . . . . . . . . . . . . 34 11 . 12 . 13 37 . 28 . 11 . 16 6 10 39 Explosions 575 | . . . . . . 26 . . 11 109 . 8 . 137 . . 64 . 220 . . . . . . . . . . . . . Melee 1087 | . . . 121 . . 140 . 565 56 . . . . . . 101 . . . . . . . . . . . . . 21 . 83 Knockbacks 68 | . . 1 1 . . 1 . 3 1 . . . . . . . . 2 . 6 1 7 10 . . . . 4 5 4 11 11 Impact 7 | . . 1 1 . . 1 . 3 1 . . . . . . . . . . . . . . . . . . . . . . . Kinetic 61 | . . . . . . . . . . . . . . . . . . 2 . 6 1 7 10 . . . . 4 5 4 11 11 Secondary . | . . . . . . . . . . . . . . . . . . . . . . . . . . . . . . . . . Self-Inflicted Damage 93 | . . . . . . . . . . . . 32 . . . . 36 . . . . . . . . . . . . 25 . . Shots 2 | . . . . . . . . . . . . 1 . . . . 1 . . . . . . . . . . . . . . . Rammed 3 | . . 1 . 1 . . . . . . . . . . . . . . . . . . . . . . . . . 1 . . Targets Rammed 6 | . 1 1 . 2 . . . . . . . . . . . . . . . . . . . . . . . . . 1 . 1 Kicked 1 | . . . . . . . . . . . . . . . . . . . . . . . . . . . . . . . . 1 Crushed 2 | . 1 . . 1 . . . . . . . . . . . . . . . . . . . . . . . . . . . . Highest Temperature 330 | . 30 4 . . . 9 . 254 249 . 6 253 125 207 . 288 204 330 200 46 243 66 152 6 . . . 1 1 80 200 305 Average Temperature 59 | . 7 3 . . . 9 . 79 101 . 4 57 48 52 . 107 75 64 69 14 78 32 36 6 . . . 1 1 29 105 134 Received Heat Transfer 1948 | . 195 . 36 . . 58 . 9 . . . 342 . 21 . 54 12 45 18 109 21 . 9 . . . . 9 . 9 . 1001 Effects 3 | . . . . . . . . . . . . 3 . . . . . . . . . . . . . . . . . . . . Interference 3 | . . . . . . . . . . . . 3 . . . . . . . . . . . . . . . . . . . . Siege Activations . | . . . . . . . . . . . . . . . . . . . . . . . . . . . . . . . . . Martial Activations . | . . . . . . . . . . . . . . . . . . . . . . . . . . . . . . . . . Shielding Activations 2 | . . . . . . . . . . . . . . . . . . . . . . . . . . . . . . . . 2 Total Turns 27 | . . . . . . . . . . . . . . . . . . . . . . . . . . . . . . . . 27 Longest Duration 21 | . . . . . . . . . . . . . . . . . . . . . . . . . . . . . . . . 21 Robots Disrupted . | . . . . . . . . . . . . . . . . . . . . . . . . . . . . . . . . . Combat Hostiles . | . . . . . . . . . . . . . . . . . . . . . . . . . . . . . . . . . Robots Corrupted 9 | . . . 1 . . 1 . 4 1 . . . . . . . 2 . . . . . . . . . . . . . . . Combat Hostiles 3 | . . . 1 . . . . . 1 . . . . . . . 1 . . . . . . . . . . . . . . . Parts Fried 21 | . . . . . . 3 . 9 1 . . . . 2 . 1 5 . . . . . . . . . . . . . . . Impact Corruptions 22 | . . . 2 . . 5 . 13 1 . . . . . . . . . . . . . . . . . . . . 1 . . Robots Melted . | . . . . . . . . . . . . . . . . . . . . . . . . . . . . . . . . . Combat Hostiles . | . . . . . . . . . . . . . . . . . . . . . . . . . . . . . . . . . Parts Melted 4 | . . . . . . . . . . . . 2 . . . . . . 1 . . . . . . . . . . . . 1 Heat Transferred 2194 | . . . . . . . . 74 . . . 627 222 851 . 37 . . . . 296 . 50 . . . . . . 37 . . Parts Sabotaged . | . . . . . . . . . . . . . . . . . . . . . . . . . . . . . . . . . Parts Stolen . | . . . . . . . . . . . . . . . . . . . . . . . . . . . . . . . . . Parts Stripped . | . . . . . . . . . . . . . . . . . . . . . . . . . . . . . . . . . Power Chain Reactions 1 | . . . . . . . . . . . . . . . . . 1 . . . . . . . . . . . . . . . Alert | -11 -10 -10 -10 -9 -9 -6 -6 -6 -6 -6 -6 -6 -5 -5 -5 -5 -5 -5 -5 -4 -4 -4 -4 -4 -4 -4 -3 -3 -3 -2 -2 -2 ------- Run | Yrd Mat Min Sub Rec Scr Fac Was Fac Low Low Zio Dee Pro Fac Was Fac Upp Upp War Pro Fac Was Fac Upp Upp Zhi Pro Res Tes Res Qua Frg Maximum Alert Level 5 | . . . . . . . . . . . . . . 3 1 1 . . . . 1 . 2 . . . . . 1 1 1 5 Low Security (%) 65 | 100 100 100 . 100 . 100 100 100 . . . . . 43 . 79 . . . . 38 100 18 . . . . 100 63 65 88 13 Level 1 14 | . . . . . . . . . . . . . . 3 100 20 . . . . 61 . 67 . . . . . 36 34 11 5 Level 2 4 | . . . . . . . . . . . . . . 11 . . . . . . . . 14 . . . . . . . . 16 Level 3 9 | . . . . . . . . . . . . . . 41 . . . . . . . . . . . . . . . . . 31 Level 4 1 | . . . . . . . . . . . . . . . . . . . . . . . . . . . . . . . . 7 Level 5 4 | . . . . . . . . . . . . . . . . . . . . . . . . . . . . . . . . 25 High Security . | . . . . . . . . . . . . . . . . . . . . . . . . . . . . . . . . . Max Security . | . . . . . . . . . . . . . . . . . . . . . . . . . . . . . . . . . Peak Influence 2990 | 10 193 78 . 138 . 137 45 38 . . . . . 1026 369 266 . . . . 317 89 420 . . . . 50 261 285 218 2990 Initial 354 | . . 63 . 67 . . 45 17 . . . . . 6 354 244 . . . . 178 89 . . . . . . 22 130 154 117 Average 328 | 1 102 35 . 42 . 40 35 6 . . . . . 482 355 144 . . . . 227 31 288 . . . . 7 181 169 119 1156 Influence Increases 11619 | 10 582 78 369 247 . 348 . 187 120 170 . . 95 1414 15 330 159 150 463 474 443 54 789 45 50 . 40 91 401 315 357 3823 Destroy 0b10 Robot/C 5620 | . 340 60 180 80 . 160 . . 100 120 . . 80 280 . . 100 60 340 260 120 . 300 . . . 40 20 160 60 140 2620 Destroy 0b10 Robot/NC 325 | 10 30 . . 5 . 5 . 45 . . . . . 45 . 20 . 5 5 5 10 . 15 . 5 . . 10 5 15 5 85 Destroy Leader 796 | . 74 10 10 . . 30 . 2 20 20 . . 10 74 . . 10 10 . 30 40 . 24 . . . . 12 30 12 22 356 Allied During Kill 480 | . . . 104 25 . 5 . . . . . . 5 . . . 4 . 118 59 . . 160 . . . . . . . . . Successful Hack 393 | . 47 . . 17 . 14 . 26 . . . . . 21 . 32 . . . . 111 . 6 . . . . . 94 24 1 . Select Force Hacks 260 | . 60 . . 120 . . . . . . . . . . . 20 . . . . 30 . 30 . . . . . . . . . Disable Machine 870 | . . . . . . 45 . 30 . . . . . 270 . 15 . . . . . . 75 . . . . 30 45 15 90 255 Anti-Garrison Action 200 | . . . . . . . . . . . . . . 200 . . . . . . . . . . . . . . . . . . Destroy Structure 830 | . 1 8 . . . 44 . 24 . . . . . 224 . 48 . . . . 72 54 44 . . . . 4 22 24 24 237 Partial Spotted 240 | . . . . . . . . 45 . . . . . 30 15 . . . . . 15 . 60 . . . . . 15 30 30 . Lose Combat Pursuer 1605 | . 30 . 75 . . 45 . 15 . 30 . . . 270 . 195 45 75 . 120 45 . 75 45 45 . . 15 30 135 45 270 Influence Decreases 8654 | 10 418 214 255 389 . 219 104 210 122 130 40 . 85 412 678 489 231 203 129 589 470 311 456 214 142 72 40 51 208 273 424 1066 Entered New Map 2486 | . . 101 16 75 . . 84 8 2 . 40 . . 4 658 105 71 23 65 399 106 168 . 124 32 72 . . 18 103 121 91 Time Decay 4947 | 10 418 113 99 314 . 132 20 192 120 130 . . 55 368 10 374 140 170 64 120 334 103 266 90 110 . 40 51 190 170 149 595 Lost Part 530 | . . . . . . 10 . 10 . . . . 10 30 10 10 20 10 . 10 20 . 10 . . . . . . . . 380 Lost Ally 547 | . . . 140 . . 77 . . . . . . 20 10 . . . . . 60 10 40 180 . . . . . . . 10 . Purge Threat 144 | . . . . . . . . . . . . . . . . . . . . . . . . . . . . . . . 144 . Squads Dispatched 77 | . 4 . . . . 8 . 7 . . . . . 7 . 7 . . . 1 11 . 7 . . . 1 1 3 6 3 11 Investigation 38 | . 3 . . . . 4 . 6 . . . . . 5 . 3 . . . . 6 . 4 . . . . . . 3 . 4 Extermination 16 | . . . . . . 1 . 1 . . . . . 2 . 2 . . . . 2 . 1 . . . . 1 1 2 2 1 Reinforcement 15 | . 1 . . . . . . . . . . . . . . 2 . . . . 2 . 2 . . . . . 1 . 1 6 Assault 3 | . . . . . . . . . . . . . . . . . . . . 1 . . . . . . 1 . 1 . . . Garrison 5 | . . . . . . 3 . . . . . . . . . . . . . . 1 . . . . . . . . 1 . . Intercept . | . . . . . . . . . . . . . . . . . . . . . . . . . . . . . . . . . Searches Triggered . | . . . . . . . . . . . . . . . . . . . . . . . . . . . . . . . . . Construction Impeded 2 | . . . . . . . . . . . . . . . . 1 . . . . . . 1 . . . . . . . . . Haulers Reinforced . | . . . . . . . . . . . . . . . . . . . . . . . . . . . . . . . . . Active Scanning Responses . | . . . . . . . . . . . . . . . . . . . . . . . . . . . . . . . . . Cargo Convoy Interrupts . | . . . . . . . . . . . . . . . . . . . . . . . . . . . . . . . . . Stealth | -11 -10 -10 -10 -9 -9 -6 -6 -6 -6 -6 -6 -6 -5 -5 -5 -5 -5 -5 -5 -4 -4 -4 -4 -4 -4 -4 -3 -3 -3 -2 -2 -2 --------- Run | Yrd Mat Min Sub Rec Scr Fac Was Fac Low Low Zio Dee Pro Fac Was Fac Upp Upp War Pro Fac Was Fac Upp Upp Zhi Pro Res Tes Res Qua Frg Distress Signals 21 | . 4 . . . . . . 1 . . . . . 1 . 2 . . . . 1 . 2 . . . . 1 2 1 2 4 Communications Jammed . | . . . . . . . . . . . . . . . . . . . . . . . . . . . . . . . . . Distress Signals . | . . . . . . . . . . . . . . . . . . . . . . . . . . . . . . . . . Times Spotted 547 | . 29 3 23 1 . 12 6 15 4 6 . 13 9 30 4 19 8 12 24 17 13 6 29 3 3 . 2 11 10 18 12 205 Peak Tracking Total 15 | . 5 3 5 . . 5 6 6 3 3 . 5 9 8 5 8 5 5 9 9 4 6 8 3 3 . 1 8 5 8 6 15 Tactical Retreats 58 | . 2 . 2 . . 3 . 5 . 1 . . . 8 . 4 2 2 . 3 2 . 2 1 1 . . 1 1 3 2 13 ECM-based Alert Blocks 12 | . . . . . . 1 . 11 . . . . . . . . . . . . . . . . . . . . . . . . Traps | -11 -10 -10 -10 -9 -9 -6 -6 -6 -6 -6 -6 -6 -5 -5 -5 -5 -5 -5 -5 -4 -4 -4 -4 -4 -4 -4 -3 -3 -3 -2 -2 -2 ------- Run | Yrd Mat Min Sub Rec Scr Fac Was Fac Low Low Zio Dee Pro Fac Was Fac Upp Upp War Pro Fac Was Fac Upp Upp Zhi Pro Res Tes Res Qua Frg Traps Triggered 19 | . . . 1 . . 1 . 2 . . . . . 1 . 3 . 1 . . 4 . 1 . . . . . . 1 1 3 Indirectly . | . . . . . . . . . . . . . . . . . . . . . . . . . . . . . . . . . Trap Hack Attempts . | . . . . . . . . . . . . . . . . . . . . . . . . . . . . . . . . . Triggered . | . . . . . . . . . . . . . . . . . . . . . . . . . . . . . . . . . Disarmed . | . . . . . . . . . . . . . . . . . . . . . . . . . . . . . . . . . Reprogrammed . | . . . . . . . . . . . . . . . . . . . . . . . . . . . . . . . . . Reused . | . . . . . . . . . . . . . . . . . . . . . . . . . . . . . . . . . Traps Extracted . | . . . . . . . . . . . . . . . . . . . . . . . . . . . . . . . . . Installed . | . . . . . . . . . . . . . . . . . . . . . . . . . . . . . . . . . Triggered . | . . . . . . . . . . . . . . . . . . . . . . . . . . . . . . . . . Most Traps Carried 4 | . . . . . . . . . . . . . . . . . . 4 4 . . . . . . . . . . . . . Machines | -11 -10 -10 -10 -9 -9 -6 -6 -6 -6 -6 -6 -6 -5 -5 -5 -5 -5 -5 -5 -4 -4 -4 -4 -4 -4 -4 -3 -3 -3 -2 -2 -2 ---------- Run | Yrd Mat Min Sub Rec Scr Fac Was Fac Low Low Zio Dee Pro Fac Was Fac Upp Upp War Pro Fac Was Fac Upp Upp Zhi Pro Res Tes Res Qua Frg Machines Disabled 72 | . 1 . 4 . . 3 . 2 . . . 1 . 18 . 1 1 . 3 . . . 5 . . . . 2 4 1 6 20 Max in Single Turn 5 | . 1 . 2 . . 2 . 1 . . . . . 5 . 1 1 . 2 . . . 1 . . . . 1 1 1 1 2 Garrison Access 6 | . . . . . . . . 1 . . . . . 1 . 1 . . . . . . 1 . . . . . 1 1 . . Machines Repaired . | . . . . . . . . . . . . . . . . . . . . . . . . . . . . . . . . . Machines Dismantled . | . . . . . . . . . . . . . . . . . . . . . . . . . . . . . . . . . Machines Sabotaged . | . . . . . . . . . . . . . . . . . . . . . . . . . . . . . . . . . Overloaded Fab Kills . | . . . . . . . . . . . . . . . . . . . . . . . . . . . . . . . . . Hacking | -11 -10 -10 -10 -9 -9 -6 -6 -6 -6 -6 -6 -6 -5 -5 -5 -5 -5 -5 -5 -4 -4 -4 -4 -4 -4 -4 -3 -3 -3 -2 -2 -2 --------- Run | Yrd Mat Min Sub Rec Scr Fac Was Fac Low Low Zio Dee Pro Fac Was Fac Upp Upp War Pro Fac Was Fac Upp Upp Zhi Pro Res Tes Res Qua Frg Machines Accessed 145 | . 10 . 1 9 2 10 . 17 . . . . . 17 . 10 1 1 2 . 16 . 11 1 . 5 . 4 10 8 7 3 Terminals 69 | . 7 . . 5 . 5 . 7 . . . . . 11 . 3 1 1 . . 7 . 3 . . . . 3 6 3 7 . Fabricators 17 | . . . . . . 1 . 2 . . . . . 2 . 4 . . . . 4 . 2 . . . . . 1 1 . . Repair Stations 6 | . 1 . . . . . . 1 . . . . . . . . . . . . 1 . 1 . . . . . 1 . . 1 Recycling Units 26 | . 2 . . 4 . 2 . 5 . . . . . 3 . 2 . . . . 2 . 3 . . . . . . 1 . 2 Scanalyzers 9 | . . . . . . 1 . 1 . . . . . . . . . . . . 2 . 1 . . . . 1 1 2 . . Garrison Access 7 | . . . . . . 1 . 1 . . . . . 1 . 1 . . . . . . 1 . . . . . 1 1 . . Total Hacks 344 | . 36 . 2 23 6 22 . 34 . . . . . 34 . 24 1 2 8 . 45 . 31 1 . 18 . 6 18 17 11 5 Successful 211 | . 25 . 2 10 6 4 . 13 . . . . . 23 . 15 1 2 8 . 33 . 25 1 . 18 . 1 9 7 6 2 Failed 132 | . 11 . . 13 . 18 . 21 . . . . . 11 . 9 . . . . 11 . 6 . . . . 5 9 10 5 3 Catastrophic 27 | . . . . 2 . 3 . 6 . . . . . 1 . 1 . . . . 2 . . . . . . 2 4 3 2 1 Database Lockouts 1 | . . . . . . . . . . . . . . . . . . . . . 1 . . . . . . . . . . . Manual 186 | . 26 . . 20 . 9 . 19 . . 6 . . 25 . 13 1 . . . 29 . 15 . . . . 3 4 7 4 5 Terminals 175 | . 32 . . 18 . 10 . 15 . . . . . 23 . 9 1 2 . . 24 . 9 . . . . 4 12 5 11 . Fabricators 51 | . . . . . . 4 . 6 . . . . . 5 . 10 . . . . 11 . 9 . . . . . 1 5 . . Repair Stations 10 | . 2 . . . . . . 1 . . . . . . . . . . . . 2 . 2 . . . . . 2 . . 1 Recycling Units 40 | . 2 . . 5 . 2 . 7 . . . . . 3 . 2 . . . . 5 . 8 . . . . . . 2 . 4 Scanalyzers 19 | . . . . . . 4 . 4 . . . . . . . . . . . . 3 . 1 . . . . 2 2 3 . . Garrison Access 14 | . . . . . . 2 . 1 . . . . . 3 . 3 . . . . . . 2 . . . . . 1 2 . . Terminal Hacks 78 | . 10 . 2 . 6 1 . 1 . . . . . 7 . 3 1 2 8 . 9 . 1 1 . 18 . . 3 . 5 . Record 20 | . . . 1 . 6 . . . . . . . . . . . 1 2 . . . . . . . 6 . . . . 4 . Part Schematic 5 | . . . . . . . . . . . . . . 1 . . . . . . . . . . . 4 . . . . . . Robot Schematic 1 | . 1 . . . . . . . . . . . . . . . . . . . . . . . . . . . . . . . Robot Analysis 9 | . 5 . . . . . . . . . . . . . . . . . . . . . . . . 4 . . . . . . Prototype ID Bank 16 | . 1 . . . . . . 1 . . . . . . . . . . 7 . 1 . . . . 4 . . 2 . . . Open Door 3 | . . . . . . . . . . . . . . 1 . . . . 1 . . . . 1 . . . . . . . . Branch Access Points 4 | . . . . . . . . . . . . . . 1 . 1 . . . . 1 . 1 . . . . . . . . . Machine Index 1 | . . . . . . . . . . . . . . . . . . . . . 1 . . . . . . . . . . . Terminal Index 3 | . 1 . . . . 1 . . . . . . . . . . . . . . 1 . . . . . . . . . . . Fabricator Index 2 | . . . . . . . . . . . . . . 1 . . . . . . 1 . . . . . . . . . . . Recycling Unit Index 2 | . 1 . . . . . . . . . . . . 1 . . . . . . . . . . . . . . . . . . Unreport Threat 1 | . . . . . . . . . . . . . . . . . . . . . . . . . . . . . . . 1 . Locate Traps 2 | . . . . . . . . . . . . . . 1 . . . . . . 1 . . . . . . . . . . . Maintenance Status 1 | . . . . . . . . . . . . . . . . . . . . . 1 . . . . . . . . . . . Recall Extermination 1 | . . . . . . . . . . . . . . . . 1 . . . . . . . . . . . . . . . . Hauler Manifests 1 | . 1 . . . . . . . . . . . . . . . . . . . . . . . . . . . . . . . Registered Components 1 | . . . . . . . . . . . . . . . . . . . . . 1 . . . . . . . . . . . Zone Layout 3 | . . . . . . . . . . . . . . 1 . 1 . . . . 1 . . . . . . . . . . . Proto ID Catalog 1 | . . . 1 . . . . . . . . . . . . . . . . . . . . . . . . . . . . . Protovariant Controls 1 | . . . . . . . . . . . . . . . . . . . . . . . . . . . . . 1 . . . Fabricator Hacks 24 | . . . . . . . . 2 . . . . . 3 . 5 . . . . 5 . 6 . . . . . 1 2 . . Network Status 5 | . . . . . . . . 1 . . . . . . . 1 . . . . . . 1 . . . . . 1 1 . . Load Schematic 12 | . . . . . . . . 1 . . . . . 2 . 2 . . . . 3 . 3 . . . . . . 1 . . Build 7 | . . . . . . . . . . . . . . 1 . 2 . . . . 2 . 2 . . . . . . . . . Repair Station Hacks 8 | . 2 . . . . . . . . . . . . . . . . . . . 2 . 2 . . . . . 2 . . . Scan Component 4 | . 1 . . . . . . . . . . . . . . . . . . . 1 . 1 . . . . . 1 . . . Repair 4 | . 1 . . . . . . . . . . . . . . . . . . . 1 . 1 . . . . . 1 . . . Recycling Unit Hacks 6 | . . . . . . . . . . . . . . . . 1 . . . . 2 . 3 . . . . . . . . . Retrieve Components 6 | . . . . . . . . . . . . . . . . 1 . . . . 2 . 3 . . . . . . . . . Scanalyzer 4 | . . . . . . . . . . . . . . . . . . . . . 1 . . . . . . 1 1 1 . . Insert Component 1 | . . . . . . . . . . . . . . . . . . . . . . . . . . . . . 1 . . . Retrieve Study 3 | . . . . . . . . . . . . . . . . . . . . . 1 . . . . . . 1 . 1 . . Garrison Access Hacks 5 | . . . . . . . . 1 . . . . . . . 1 . . . . . . 1 . . . . . 1 1 . . Seal Access 5 | . . . . . . . . 1 . . . . . . . 1 . . . . . . 1 . . . . . 1 1 . . Unauthorized Hacks 86 | . 13 . . 10 . 3 . 9 . . . . . 13 . 5 . . . . 14 . 12 . . . . . 1 3 1 2 Terminals 46 | . 11 . . 6 . 1 . 3 . . . . . 8 . 2 . . . . 7 . 5 . . . . . 1 1 1 . Track 1 | . . . . . . . . . . . . . . . . . . . . . 1 . . . . . . . . . . . Assimilate 5 | . . . . . . . . . . . . . . 2 . . . . . . 1 . 1 . . . . . . . 1 . Botnet 20 | . 3 . . 1 . . . 2 . . . . . 5 . 1 . . . . 4 . 2 . . . . . 1 1 . . Disrupt 1 | . . . . . . . . . . . . . . . . 1 . . . . . . . . . . . . . . . . Operators 7 | . 2 . . . . 1 . 1 . . . . . 1 . . . . . . 1 . 1 . . . . . . . . . Skim 12 | . 6 . . 5 . . . . . . . . . . . . . . . . . . 1 . . . . . . . . . Fabricators 11 | . . . . . . . . 1 . . . . . 1 . 2 . . . . 3 . 3 . . . . . . 1 . . Prioritize 2 | . . . . . . . . . . . . . . . . . . . . . 1 . 1 . . . . . . . . . Haulers 2 | . . . . . . . . 1 . . . . . . . . . . . . . . 1 . . . . . . . . . Download 1 | . . . . . . . . . . . . . . . . 1 . . . . . . . . . . . . . . . . Recompile 6 | . . . . . . . . . . . . . . 1 . 1 . . . . 2 . 1 . . . . . . 1 . . Repair Stations 1 | . . . . . . . . . . . . . . . . . . . . . . . . . . . . . . . . 1 Patch 1 | . . . . . . . . . . . . . . . . . . . . . . . . . . . . . . . . 1 Recycling Units 25 | . 2 . . 4 . 2 . 5 . . . . . 3 . 1 . . . . 3 . 3 . . . . . . 1 . 1 Mask 2 | . . . . . . . . . . . . . . . . . . . . . 1 . 1 . . . . . . . . . Tunnel 6 | . 2 . . 4 . . . . . . . . . . . . . . . . . . . . . . . . . . . . Fedlink 17 | . . . . . . 2 . 5 . . . . . 3 . 1 . . . . 2 . 2 . . . . . . 1 . 1 Scanalyzers 2 | . . . . . . . . . . . . . . . . . . . . . 1 . 1 . . . . . . . . . Extract 2 | . . . . . . . . . . . . . . . . . . . . . 1 . 1 . . . . . . . . . Garrison Access 1 | . . . . . . . . . . . . . . 1 . . . . . . . . . . . . . . . . . . Jam 1 | . . . . . . . . . . . . . . 1 . . . . . . . . . . . . . . . . . . Data Cores Recovered . | . . . . . . . . . . . . . . . . . . . . . . . . . . . . . . . . . Used . | . . . . . . . . . . . . . . . . . . . . . . . . . . . . . . . . . Hacking Detections 83 | . 7 . . 5 . 8 . 11 . . . . . 6 . 5 . . . . 9 . 6 . . . . 4 7 7 6 2 Full Trace Events 7 | . 1 . . . . 2 . 1 . . . . . . . . . . . . 1 . . . . . . . . 1 . 1 Feedback Events 3 | . . . . . . 2 . 1 . . . . . . . . . . . . . . . . . . . . . . . . Corruption 2 | . . . . . . 2 . . . . . . . . . . . . . . . . . . . . . . . . . . Hackware Fried 1 | . . . . . . . . 1 . . . . . . . . . . . . . . . . . . . . . . . . Feedback Blocked . | . . . . . . . . . . . . . . . . . . . . . . . . . . . . . . . . . Robot Schematics Acquired 1 | . 1 . . . . . . . . . . . . . . . . . . . . . . . . . . . . . . . Robots Built . | . . . . . . . . . . . . . . . . . . . . . . . . . . . . . . . . . Authchips . | . . . . . . . . . . . . . . . . . . . . . . . . . . . . . . . . . Time . | . . . . . . . . . . . . . . . . . . . . . . . . . . . . . . . . . Total Robot Build Rating . | . . . . . . . . . . . . . . . . . . . . . . . . . . . . . . . . . Part Schematics Acquired 14 | . . . . . . . . . . . . . . 1 . 1 . . . . 3 . 5 . . 4 . . . . . . Parts Built 9 | . . . . . . . . . . . . . . 1 . 2 . . . . 3 . 3 . . . . . . . . . Authchips 5 | . . . . . . . . . . . . . . 1 . 1 . . . . 1 . 2 . . . . . . . . . Time 410 | . . . . . . . . . . . . . . 84 . 185 . . . . 65 . 76 . . . . . . . . . Total Part Build Rating 74 | . . . . . . . . . . . . . . 6 . 18 . . . . 26 . 24 . . . . . . . . . Part Studies Acquired 3 | . . . . . . . . . . . . . . . . . . . . . 1 . . . . . . 1 . 1 . . Parts Repaired 4 | . 1 . . . . . . . . . . . . . . . . . . . 1 . 1 . . . . . 1 . . . Time 178 | . 26 . . . . . . . . . . . . . . . . . . . 28 . 44 . . . . . 80 . . . Parts Recycled . | . . . . . . . . . . . . . . . . . . . . . . . . . . . . . . . . . Recycled Matter . | . . . . . . . . . . . . . . . . . . . . . . . . . . . . . . . . . Retrieved Matter . | . . . . . . . . . . . . . . . . . . . . . . . . . . . . . . . . . Retrieved Components 11 | . . . . . . . . . . . . . . . . 2 . . . . 3 . 6 . . . . . . . . . Parts Scanalyzed . | . . . . . . . . . . . . . . . . . . . . . . . . . . . . . . . . . Part Schematics Acquired . | . . . . . . . . . . . . . . . . . . . . . . . . . . . . . . . . . Parts Damaged . | . . . . . . . . . . . . . . . . . . . . . . . . . . . . . . . . . Bothacking | -11 -10 -10 -10 -9 -9 -6 -6 -6 -6 -6 -6 -6 -5 -5 -5 -5 -5 -5 -5 -4 -4 -4 -4 -4 -4 -4 -3 -3 -3 -2 -2 -2 ------------ Run | Yrd Mat Min Sub Rec Scr Fac Was Fac Low Low Zio Dee Pro Fac Was Fac Upp Upp War Pro Fac Was Fac Upp Upp Zhi Pro Res Tes Res Qua Frg Used RIF Installer . | . . . . . . . . . . . . . . . . . . . . . . . . . . . . . . . . . Robots Hacked 1 | . . . . . . . . . . . . . . . . . . . . . 1 . . . . . . . . . . . Non-combat 1 | . . . . . . . . . . . . . . . . . . . . . 1 . . . . . . . . . . . Combat . | . . . . . . . . . . . . . . . . . . . . . . . . . . . . . . . . . Robot Hacks Applied 1 | . . . . . . . . . . . . . . . . . . . . . 1 . . . . . . . . . . . find_chute 1 | . . . . . . . . . . . . . . . . . . . . . 1 . . . . . . . . . . . Relay Couplers Released . | . . . . . . . . . . . . . . . . . . . . . . . . . . . . . . . . . Fabnet Peak Effective % . | . . . . . . . . . . . . . . . . . . . . . . . . . . . . . . . . . Robots Rewired 5 | . . . . . . . . . . . . . . . . . . . 5 . . . . . . . . . . . . . Allies Hacked 1 | . . . . . . . . . . . . . . . . . . . . . . . 1 . . . . . . . . . Hacks Repelled . | . . . . . . . . . . . . . . . . . . . . . . . . . . . . . . . . . Allies | -11 -10 -10 -10 -9 -9 -6 -6 -6 -6 -6 -6 -6 -5 -5 -5 -5 -5 -5 -5 -4 -4 -4 -4 -4 -4 -4 -3 -3 -3 -2 -2 -2 -------- Run | Yrd Mat Min Sub Rec Scr Fac Was Fac Low Low Zio Dee Pro Fac Was Fac Upp Upp War Pro Fac Was Fac Upp Upp Zhi Pro Res Tes Res Qua Frg Total Allies 65 | . . . 15 . . . . . . . 2 . . 1 . . 2 . 5 7 13 18 1 . . . . . . . 1 . Largest Group 18 | . . . 12 5 5 5 . . . . 2 2 1 1 . . 2 . 5 4 4 18 11 . . . . . . . 1 . Highest-Rated Group 656 | . . . 228 95 95 95 . . . . 192 192 96 10 . . 162 . 246 324 243 656 456 . . . . . . . 26 . Highest-Rated Ally 96 | . . . 19 19 19 19 . . . . 96 96 96 10 . . 81 . 64 81 81 50 50 . . . . . . . 26 . Total Orders 2 | . . . . . . . . . . . . . . . . . . . 2 . . . . . . . . . . . . . STAY 1 | . . . . . . . . . . . . . . . . . . . 1 . . . . . . . . . . . . . FOLLOW 1 | . . . . . . . . . . . . . . . . . . . 1 . . . . . . . . . . . . . Ally Attacks 373 | . . . 59 15 . 22 . . . . . 61 4 . . . 6 . 22 40 12 66 66 . . . . . . . . . Total Damage 10806 | . . . 838 297 . 356 . . . . . 1665 47 . . . 123 . 589 1038 261 3877 1715 . . . . . . . . . Kills 64 | . . . 10 4 . 3 . . . . . 16 . . . . 1 . 5 7 2 7 9 . . . . . . . . . Allies Corrupted 1 | . . . . . . . . . . . . . . . . . . . . . . . 1 . . . . . . . . . Allies Melted 3 | . . . . . . . . . . . . 1 . . . . . . . . . . 1 . . . . . . . . 1 Intel | -11 -10 -10 -10 -9 -9 -6 -6 -6 -6 -6 -6 -6 -5 -5 -5 -5 -5 -5 -5 -4 -4 -4 -4 -4 -4 -4 -3 -3 -3 -2 -2 -2 ------- Run | Yrd Mat Min Sub Rec Scr Fac Was Fac Low Low Zio Dee Pro Fac Was Fac Upp Upp War Pro Fac Was Fac Upp Upp Zhi Pro Res Tes Res Qua Frg Active Infowar (turns) 13624 | 33 764 . 165 . . 566 53 744 522 350 695 877 226 933 33 875 282 346 543 285 741 298 646 184 231 68 270 207 383 340 329 1635 Optics 11526 | . . . . . . 91 53 744 522 350 695 877 226 933 33 875 282 346 543 285 741 298 646 184 231 68 270 207 383 340 329 974 Sensors 8020 | . . . . . . 186 53 744 400 308 447 106 129 777 33 858 214 307 . 18 611 207 638 181 231 41 229 207 369 340 272 114 A.S.S. 661 | . . . . . . . . . . . . . . . . . . . . . . . . . . . . . . . . 661 Terrain 1177 | . . . . . . 43 . . . . . . . . . . . . . . . . . . . . . 200 287 278 252 117 Seismic 1326 | 33 676 . 165 . . 452 . . . . . . . . . . . . . . . . . . . . . . . . . . Cloaking 1015 | . . . . . . . . . . . . . . . . . . . 18 7 386 . 569 . . . . . . . . 35 ECM 774 | . 88 . . . . 42 . 626 18 . . . . . . . . . . . . . . . . . . . . . . . Robot Analysis Total 9 | . 5 . . . . . . . . . . . . . . . . . . . . . . . . 4 . . . . . . Derelict Logs Recovered 18 | . . . 2 . 3 . . . 1 2 1 . 1 . . . 1 2 . 1 . . . 2 2 . . . . . . . Drone Launches . | . . . . . . . . . . . . . . . . . . . . . . . . . . . . . . . . . Drone Recoveries . | . . . . . . . . . . . . . . . . . . . . . . . . . . . . . . . . . Exploration | -11 -10 -10 -10 -9 -9 -6 -6 -6 -6 -6 -6 -6 -5 -5 -5 -5 -5 -5 -5 -4 -4 -4 -4 -4 -4 -4 -3 -3 -3 -2 -2 -2 ------------- Run | Yrd Mat Min Sub Rec Scr Fac Was Fac Low Low Zio Dee Pro Fac Was Fac Upp Upp War Pro Fac Was Fac Upp Upp Zhi Pro Res Tes Res Qua Frg Turns Passed 21374 | 112 1150 287 2407 1104 3392 568 53 744 522 350 695 877 226 933 33 875 282 346 543 285 741 298 646 184 231 68 270 207 383 340 329 1893 Spaces Moved 24510 | 52 527 151 1645 332 2395 731 89 1193 676 597 1120 910 419 1331 79 1196 530 652 837 445 1286 321 1153 364 548 143 591 451 689 743 656 1658 Core 10 | 9 . . . . 1 . . . . . . . . . . . . . . . . . . . . . . . . . . . Treads 3202 | 43 527 151 697 332 1452 . . . . . . . . . . . . . . . . . . . . . . . . . . . Legs 225 | . . . . . . . . . . . . . . . . . . . . . . . . . . . . . . . . 225 Wheels 1093 | . . . 948 . 93 52 . . . . . . . . . . . . . . . . . . . . . . . . . . Hover 19567 | . . . . . 436 679 89 1193 676 597 1120 910 419 1331 79 1196 530 652 837 445 1286 321 1153 364 548 143 591 451 689 743 656 1433 Flight 413 | . . . . . 413 . . . . . . . . . . . . . . . . . . . . . . . . . . . Fastest Speed 20 | 50 160 160 110 160 34 56 56 52 52 52 52 44 44 42 38 38 38 20 38 41 34 41 39 39 39 39 39 37 37 25 20 20 Average Speed 65 | 147 160 160 131 160 137 63 56 52 52 54 60 56 44 43 39 38 38 37 46 42 38 41 40 39 39 39 39 37 37 34 32 57 Slowest Speed 400 | 160 160 160 160 160 400 170 56 56 102 102 102 116 113 44 42 102 102 89 113 44 100 41 41 39 39 39 39 37 37 122 34 280 Overloaded Moves 1 | . . . . . . . . . . . . . . . . . . . . . . . . . . . . . . 1 . . Propulsion Burnouts . | . . . . . . . . . . . . . . . . . . . . . . . . . . . . . . . . . Robots Hopped . | . . . . . . . . . . . . . . . . . . . . . . . . . . . . . . . . . Potential Cave-ins 17 | . . . . . . . . . . . . 1 . 2 . . . . . 2 2 . . . . . . . . . . 10 Cave-ins Triggered 1 | . . . . . . . . . . . . 1 . . . . . . . . . . . . . . . . . . . . Teleports 1 | . . . . . . . . . . . . . . . . . . . . . . . . . . . . . . . 1 . Exploration Rate (%) 59 | 4 78 42 92 72 89 22 80 41 83 69 84 74 68 31 72 26 77 75 84 69 37 97 22 50 66 60 68 13 66 37 66 51 Regions Visited 32 Branch Regions 20 Pre-discovered Areas 25 | . 3 . 1 7 1 1 . . . . 4 . . . . . . 2 . 1 . . . 1 1 3 . . . . . . Known Exits Taken 22 | . . 1 1 1 . . . 1 1 1 1 . 1 . . 1 1 1 1 1 . . 1 1 1 1 1 1 1 1 1 . Unknown Exits Taken 4 | 1 1 . . . 1 . . . . . . 1 . . . . . . . . . . . . . . . . . . . . Scrap Searched 54 | . . 3 19 . 6 . . . 3 4 2 . 4 . . . 4 2 . 2 . . . 2 . . 3 . . . . . Spaces Dug 275 | . 1 . 10 . . 10 . 23 8 . . 13 . 83 . 24 15 . . 8 39 . 10 . . . 3 1 6 2 6 13 Terrain Destroyed 707 | . 1 8 25 . . 47 . 24 19 47 . 36 4 128 . 25 39 3 78 29 43 9 26 . 2 . 5 2 11 7 8 81 Melee 39 | . 1 . 3 . . 10 . 1 4 . . . . . . 9 4 . . . . . . . . . . . . . 5 2 Projectile 316 | . . . . . . . . 23 4 . . 14 4 61 . 16 . 3 1 29 43 9 26 . 2 . 5 2 11 7 3 53 AOE 326 | . . 8 22 . . 37 . . 11 47 . 22 . 67 . . 35 . 77 . . . . . . . . . . . . . Terrain Rammed . | . . . . . . . . . . . . . . . . . . . . . . . . . . . . . . . . . Walls Destroyed . | . . . . . . . . . . . . . . . . . . . . . . . . . . . . . . . . . Machines Disabled . | . . . . . . . . . . . . . . . . . . . . . . . . . . . . . . . . . Actions | -11 -10 -10 -10 -9 -9 -6 -6 -6 -6 -6 -6 -6 -5 -5 -5 -5 -5 -5 -5 -4 -4 -4 -4 -4 -4 -4 -3 -3 -3 -2 -2 -2 --------- Run | Yrd Mat Min Sub Rec Scr Fac Was Fac Low Low Zio Dee Pro Fac Was Fac Upp Upp War Pro Fac Was Fac Upp Upp Zhi Pro Res Tes Res Qua Frg Total 28482 | 73 720 193 1792 905 2493 815 91 1266 818 614 1131 1214 445 1574 80 1565 575 739 985 505 1480 470 1290 402 561 155 617 478 787 799 731 2119 Wait 1980 | . 75 34 22 569 6 6 . 7 111 . 2 197 11 88 1 303 14 49 43 19 57 124 68 35 10 . 12 7 51 14 13 32 Move 24478 | 51 526 150 1644 331 2394 731 88 1192 675 596 1119 908 418 1330 78 1194 529 651 836 444 1286 320 1152 363 547 142 590 450 688 742 655 1658 Hop . | . . . . . . . . . . . . . . . . . . . . . . . . . . . . . . . . . Pick Up 218 | 5 25 . 18 . 30 12 1 8 . 3 1 14 2 16 . 7 . 4 9 1 14 1 9 . . 2 . 2 5 7 9 13 Fast Attach 172 | 5 . 1 3 . 19 11 1 4 4 . 2 20 2 5 . 5 1 2 9 2 9 2 3 . . 4 . 2 3 1 2 50 Attach 86 | 2 1 . 4 . 1 11 . 2 . . . 6 1 7 1 3 1 3 5 1 6 1 6 . . . . 2 . 4 6 12 Detach 26 | . 1 . 1 . 1 4 . 1 1 . 1 1 . 2 . 1 . 3 1 . 2 . . . . 1 . . . 1 1 3 Swap 180 | 2 7 3 14 1 4 3 . 5 10 8 4 14 3 18 . 7 5 6 2 2 17 1 6 3 1 1 5 2 8 2 6 10 Drop 281 | 1 14 2 19 2 37 19 1 9 4 3 1 24 3 17 . 8 . 7 19 1 18 4 8 . . 5 . 2 6 4 9 34 Fire 823 | 7 69 2 35 . . 4 . 27 6 4 1 29 5 85 . 21 20 12 10 35 55 17 38 1 3 . 10 11 26 20 17 253 Melee 97 | . 1 . 32 . . 14 . 11 7 . . . . . . 15 5 . . . . . . . . . . . . . 9 3 Ram 1 | . . . . . . . . . . . . . . . . . . . . . . . . . . . . . . 1 . . Kick 1 | . . . . . . . . . . . . . . . . . . . . . . . . . . . . . . . . 1 Crush 4 | . 1 1 . 2 . . . . . . . . . . . . . . . . . . . . . . . . . . . . Escape Stasis 27 | . . . . . . . . . . . . 1 . 1 . 1 . . . . 13 . . . . . . . . 3 4 4 Rewire 55 | . . . . . 1 . . . . . . . . . . . . 2 51 . . . . . . . . . . . . 1 Trap . | . . . . . . . . . . . . . . . . . . . . . . . . . . . . . . . . . Miscellaneous 53 | . . . . . . . . . . . . . . 5 . . . . . . 3 . . . . . . . . . . 45 Route ------- -11/Scrapyard -10/Materials (discovered 5 exits: *Mat x3 / [*Min] / Sub) -10/Mines (discovered 2 exits: *Mat / *Sub) -10/Subcaves (discovered 3 exits: *Mat x2 / *Rec) -9/Recycling (discovered 2 exits: [*Fac] / *Scr) -9/Scraptown (discovered 2 exits: *Fac x2) -6/Factory -6/Waste -6/Factory (discovered 4 exits: *Fac x3 / *Low) -6/Lower Caves -6/Lower Caves -6/Zion (discovered 2 exits: *Dee / [*Pro]) -6/Deep Caves -5/Proximity Caves -5/Factory (discovered 6 exits: *Fac x2 / Upp x2 / *Ext x2) -5/Waste -5/Factory (discovered 5 exits: *Fac / *Upp x2 / Ext x2) -5/Upper Caves -5/Upper Caves (discovered 2 exits: *Fac / *War) -5/Warlord -4/Proximity Caves -4/Factory (discovered 5 exits: *Res x2 / *Upp x2 / Arm) -4/Waste -4/Factory (discovered 3 exits: *Upp x2 / Arm) -4/Upper Caves -4/Upper Caves (discovered 2 exits: *Res / *Zhi) -4/Zhirov -3/Proximity Caves -3/Research -3/Testing -2/Research -2/Quarantine (discovered 3 exits: *Acc / *Sec / *Frg) -2/Protoforge 0bPrime History --------- Turn | Location | Event 10 | -11/Scrapyard | Discovered new exit (range 16) 113 | -11/Scrapyard | Entered Materials 266 | -10/Materials | Repaired Flight Unit 313 | -10/Materials | Build established: Mutant 325 | -10/Materials | Discovered new exit (range 13) 463 | -10/Materials | Discovered new exit (range 16) 1005 | -10/Materials | Learned location of Subcaves (-10) 1055 | -10/Materials | Identified exit to Materials 1055 | -10/Materials | Identified exit to Subcaves 1123 | -10/Materials | Learned location of 2 exits from Subcaves 1140 | -10/Materials | Loaded intel: 19 trap records 1263 | -10/Materials | Entered Mines 1432 | -10/Mines | Discovered exit to Materials (range 7) 1467 | -10/Mines | Found a hidden stash of uninstalled traps 1550 | -10/Mines | Entered Subcaves 1551 | -10/Subcaves | Approached by a straggling Scientist 1551 | -10/Subcaves | Identified exit to Recycling 1551 | -10/Subcaves | Identified exit to Materials 1701 | -10/Subcaves | Core integrity fell below 50% 1740 | -10/Subcaves | Visited triangular shrine 1749 | -10/Subcaves | Found Prototype Device 1750 | -10/Subcaves | Identified V3-11A's Pendant 1755 | -10/Subcaves | Befriended Subdweller 1810 | -10/Subcaves | Befriended Subdweller 1845 | -10/Subcaves | Befriended Subdweller 1885 | -10/Subcaves | Befriended Subdweller 1960 | -10/Subcaves | Befriended Subdweller 1965 | -10/Subcaves | Befriended Subdweller 2165 | -10/Subcaves | Befriended Subdweller 2280 | -10/Subcaves | Befriended Subdweller 2281 | -10/Subcaves | Learned Materials emergency access door positions 2290 | -10/Subcaves | Shifting Twisted Machinery released Mak. Thermal Plating 2297 | -10/Subcaves | Shifting Twisted Machinery released Sub. Optics 2478 | -10/Subcaves | A swath of the cavern ceiling suddenly collapsed 2715 | -10/Subcaves | Learned location of Zion (-6) 2715 | -10/Subcaves | Met a Zionite searching for "candidates" 2780 | -10/Subcaves | Befriended Subdweller 2780 | -10/Subcaves | Befriended Subdweller 2845 | -10/Subcaves | Befriended Subdweller 2855 | -10/Subcaves | Befriended Subdweller 3279 | -10/Subcaves | Discovered exit to Materials (range 12) 3344 | -10/Subcaves | Befriended Subdweller 3344 | -10/Subcaves | Befriended Subdweller 3451 | -10/Subcaves | Disturbed a concealed Subdweller 3459 | -10/Subcaves | Befriended Subdweller 3775 | -10/Subcaves | Lost 7 allies 3867 | -10/Subcaves | Visited 4L-MR0's lab 3886 | -10/Subcaves | Found Gun Armor 3957 | -10/Subcaves | Entered Recycling 3957 | -9/Recycling | Accompanied by 5 allies 4248 | -9/Recycling | Discovered new exit (range 15) 4253 | -9/Recycling | Build established: Derelict-Mutant 4358 | -9/Recycling | Scanned before Scraplab entrance 4512 | -9/Recycling | Learned 2 Materials zone layouts 4723 | -9/Recycling | Learned 2 Materials zone layouts 4773 | -9/Recycling | Learned 4 Materials zone layouts 4815 | -9/Recycling | Learned 2 Storage zone layouts 4892 | -9/Recycling | Learned Materials trap positions 5007 | -9/Recycling | Identified exit to Scraptown 5040 | -9/Recycling | Entered Scraplab 5061 | -9/Recycling | Entered Scraptown 5061 | -9/Scraptown | Accompanied by 5 allies 5309 | -9/Scraptown | Visited Assassins FH 5359 | -9/Scraptown | Visited Awakened 5392 | -9/Scraptown | Visited SPCMW 5427 | -9/Scraptown | Visited Red Mages 5520 | -9/Scraptown | Received an X-ray algorithm 5523 | -9/Scraptown | Delivered V3-11A's Pendant to T0-NE2 in exchange for information 5709 | -9/Scraptown | Discovered new exit (range 11) 5788 | -9/Scraptown | Scanned Subdweller tech in exchange for log data 5791 | -9/Scraptown | Learned Factory stockpile data 5792 | -9/Scraptown | Learned Research stockpile data 5794 | -9/Scraptown | Learned location of Extension (-5) 5837 | -9/Scraptown | Visited Comm Corps 5902 | -9/Scraptown | Visited Junk Repository 6023 | -9/Scraptown | Visited Shadow of the Wyrm 6045 | -9/Scraptown | Visited UFD Registry 6045 | -9/Scraptown | Registered with UFD as "Gunback" 6183 | -9/Scraptown | Guru changed UFD alias to "Shortmaster" 6327 | -9/Scraptown | Visited Curators Association 6375 | -9/Scraptown | Visited Chapter 10 6432 | -9/Scraptown | Visited Scrap Suit Storage 6515 | -9/Scraptown | Delivered Scrap Shield to a Scientist 6671 | -9/Scraptown | Visited DA-N13 Charitable Foundation 6678 | -9/Scraptown | Found DCF Scrap (30 items) 6724 | -9/Scraptown | Visited Abandonware Association 6760 | -9/Scraptown | Learned abandonware demo "REVENGE.EXE" 6798 | -9/Scraptown | Visited Supply Room 6851 | -9/Scraptown | Visited Supply Room 6899 | -9/Scraptown | Visited A0-MCA Data Center 7819 | -9/Scraptown | Build established: Mutant 7944 | -9/Scraptown | Given a B- rating by A0-MCA 7949 | -9/Scraptown | Found A0-MCA's Component Scanner 7999 | -9/Scraptown | Visited Research Penetration Think Tank 8122 | -9/Scraptown | Build established: Derelict-Mutant 8363 | -9/Scraptown | Met Optimus 8363 | -9/Scraptown | Accepted into 0bPrime 8439 | -9/Scraptown | Discovered new exit (range 5) 8453 | -9/Scraptown | Entered Factory 8453 | -6/Factory | Accompanied by 5 allies 8453 | -6/Factory | Evolved 8 slots: Propulsion x3, Utility x5 8624 | -6/Factory | Garrison activated, responded to threat 8672 | -6/Factory | Lost 4 allies 8729 | -6/Factory | Loaded intel: 8 recycling unit locations 8821 | -6/Factory | Build established: Mutant 8917 | -6/Factory | Learned location of Protoforge (-2) 9021 | -6/Factory | Sucked down chute 9021 | -6/Factory | Entered Waste 9027 | -6/Waste | Spotted C-40 Crusher 9033 | -6/Waste | Spotted C-40 Crusher 9036 | -6/Waste | EMP discharged 9036 | -6/Waste | System corruption reached 10% 9041 | -6/Waste | Spotted C-40 Crusher 9047 | -6/Waste | Spotted C-40 Crusher 9048 | -6/Waste | Spotted C-40 Crusher 9048 | -6/Waste | Spotted C-40 Crusher 9060 | -6/Waste | Discovered new exit (range 20) 9073 | -6/Waste | Identified exit to Factory 9074 | -6/Waste | Entered Factory 9086 | -6/Factory | Imp. Hacking Suite fried by hacking feedback 9125 | -6/Factory | Build established: Scout 9155 | -6/Factory | Loaded intel: 8 recycling unit locations 9301 | -6/Factory | Spotted B-75 Beast 9386 | -6/Factory | Discovered new exit (range 12) 9392 | -6/Factory | Identified exit to Factory 9447 | -6/Factory | Discovered exit to Factory (range 8) 9519 | -6/Factory | Build established: Ninja 9536 | -6/Factory | Discovered new exit (range 7) 9538 | -6/Factory | Identified exit to Lower Caves 9658 | -6/Factory | Discovered exit to Factory (range 18) 9818 | -6/Factory | Entered Lower Caves 9820 | -6/Lower Caves | UFD Scientist delivered a prototype 9835 | -6/Lower Caves | Found Prototype Protection 9835 | -6/Lower Caves | Identified Enh. Scrap Shield 9943 | -6/Lower Caves | Found DCF Scrap (10 items) 10263 | -6/Lower Caves | Encountered a Warlord checkpoint 10313 | -6/Lower Caves | Learned Factory security intel 10320 | -6/Lower Caves | Discovered new exit (range 18) 10336 | -6/Lower Caves | Build established: Scout 10338 | -6/Lower Caves | Identified exit to Lower Caves 10338 | -6/Lower Caves | Spotted B-75 Beast 10340 | -6/Lower Caves | Entered another Lower Caves area 10461 | -6/Lower Caves | Learned Factory stockpile data 10469 | -6/Lower Caves | Spotted B-75 Beast 10533 | -6/Lower Caves | Discovered new exit (range 16) 10591 | -6/Lower Caves | Prototype Device suddenly appears! 10597 | -6/Lower Caves | Found Prototype Device 10612 | -6/Lower Caves | Identified exit to Zion 10690 | -6/Lower Caves | Entered Zion 10733 | -6/Zion | System corruption cleaned by Quarantine Array 10739 | -6/Zion | Given the Hacking Drone Bay 10758 | -6/Zion | Discovered new exit (range 10) 10837 | -6/Zion | Learned Factory terminal intel 10850 | -6/Zion | Acquired unknown access codes intercepted by a Zionite 10856 | -6/Zion | Identified Amulet of Y3-NDR 10862 | -6/Zion | Given A8's code to call for help 10941 | -6/Zion | Received a hallucinogenic algorithm 10941 | -6/Zion | Ran a hallucination algorithm 11213 | -6/Zion | Found Prototype Device 11334 | -6/Zion | Enhanced Grunt warped into view, answering call for help 11337 | -6/Zion | Enhanced Grunt warped into view, answering call for help 11364 | -6/Zion | Opened final containment barrier to the Deep Caves 11380 | -6/Zion | Discovered new exit (range 3) 11380 | -6/Zion | Saw the warning signs outside the Deep Caves entrance 11381 | -6/Zion | Identified exit to Deep Caves 11385 | -6/Zion | Entered Deep Caves 11385 | -6/Deep Caves | Accompanied by 2 allies 11479 | -6/Deep Caves | Build established: Mutant 11583 | -6/Deep Caves | Attacked by Z-Imprinter 11593 | -6/Deep Caves | Z-Facility disabled 11594 | -6/Deep Caves | Attached CPS modules to Z-Imprinter. 11616 | -6/Deep Caves | Allies destroyed Z-Imprinter 11648 | -6/Deep Caves | Lost 6 parts (1p2n2u1w) 11652 | -6/Deep Caves | Found Prototype Protection 11652 | -6/Deep Caves | Identified Zio. Weapon Casing 11663 | -6/Deep Caves | Crushed by falling debris 11667 | -6/Deep Caves | Found Prototype Device 11670 | -6/Deep Caves | Found Zio. Weapon Casing 11680 | -6/Deep Caves | Identified Zio. Metafield Generator 11822 | -6/Deep Caves | Found Zio. Weapon Casing 11873 | -6/Deep Caves | Build established: Scavenger-Mutant 11911 | -6/Deep Caves | Found Zio. Weapon Casing 11980 | -6/Deep Caves | Found Surveybot 24 Chip 11981 | -6/Deep Caves | Found Surveybot 24 Scanner 12028 | -6/Deep Caves | Attached CPS modules to Enhanced Grunt. 12253 | -6/Deep Caves | Discovered new exit (range 6) 12262 | -6/Deep Caves | Entered Proximity Caves 12262 | -5/Proximity Caves | Accompanied by 1 ally 12473 | -5/Proximity Caves | Learned Factory stockpile data 12473 | -5/Proximity Caves | Discovered exit to Factory (range 17) 12488 | -5/Proximity Caves | Entered Factory 12488 | -5/Factory | Evolved 2 slots: Utility x2 12491 | -5/Factory | Loaded intel: 27 terminal locations 12689 | -5/Factory | Discovered new exit (range 6) 12690 | -5/Factory | Identified exit to Extension 12819 | -5/Factory | Identified exit to Upper Caves 12829 | -5/Factory | Discovered new exit (range 4) 12830 | -5/Factory | Identified exit to Factory 12870 | -5/Factory | Build established: Scavenger-Scout 12892 | -5/Factory | Loaded intel: 8 recycling unit locations 13046 | -5/Factory | Discovered exit to Factory (range 19) 13284 | -5/Factory | Fabricated Tri-rail Accelerator? 13421 | -5/Factory | Manually triggered Chute Trap 13421 | -5/Factory | Sucked down chute 13421 | -5/Factory | Entered Waste 13422 | -5/Waste | Spotted C-40 Crusher 13427 | -5/Waste | Spotted C-40 Crusher 13436 | -5/Waste | EMP discharged 13436 | -5/Waste | System corruption reached 10% 13437 | -5/Waste | Spotted C-40 Crusher 13438 | -5/Waste | Spotted C-40 Crusher 13438 | -5/Waste | Spotted C-40 Crusher 13449 | -5/Waste | Discovered new exit (range 13) 13454 | -5/Waste | Identified exit to Factory 13454 | -5/Waste | Entered Factory 13470 | -5/Factory | Loaded intel: 8 recycling unit locations 14019 | -5/Factory | Discovered exit to Factory (range 11) 14020 | -5/Factory | Spotted B-75 Beast 14296 | -5/Factory | Build established: Hacker-Scout 14302 | -5/Factory | Fabricated Cmb. Linear Gravjet (x2) 14329 | -5/Factory | Entered Upper Caves 14369 | -5/Upper Caves | Acquired the password to a Derelict Tinkerer's latest research 14488 | -5/Upper Caves | Joined by bewildered Wizard 14490 | -5/Upper Caves | Joined by bewildered Wizard 14503 | -5/Upper Caves | Spotted B-75 Beast 14531 | -5/Upper Caves | Learned location of 1 exit from Factory 14548 | -5/Upper Caves | Discovered new exit (range 19) 14554 | -5/Upper Caves | Identified exit to Upper Caves 14611 | -5/Upper Caves | Entered another Upper Caves area 14616 | -5/Upper Caves | Discovered exit to Factory (range 11) 14623 | -5/Upper Caves | Entered a destroyed Warlord outpost 14917 | -5/Upper Caves | Attracted the attention of an 0b10 checkpoint 14948 | -5/Upper Caves | Discovered new exit (range 11) 14957 | -5/Upper Caves | Identified exit to Warlord 14957 | -5/Upper Caves | Entered Warlord 14972 | -5/Warlord | System corruption cleaned by Quarantine Array 15185 | -5/Warlord | Visited the Vortex Lab 15188 | -5/Warlord | Found Prototype Energy Cannon 15188 | -5/Warlord | Identified Vortex Driver 15192 | -5/Warlord | Found Vortex Driver 15199 | -5/Warlord | Warlord's base attacked by MAIN.C 15215 | -5/Warlord | Rebuked by Warlord 15259 | -5/Warlord | Found Prototype Processor 15259 | -5/Warlord | Identified Exp. Core Analyzer 15262 | -5/Warlord | Found Prototype Device 15262 | -5/Warlord | Identified Exp. Cloaking Device 15273 | -5/Warlord | Found Prototype Reactor 15386 | -5/Warlord | Destroyed 7 combat bots 15407 | -5/Warlord | Warlord forces counterattacked 15496 | -5/Warlord | Discovered new exit (range 12) 15499 | -5/Warlord | Identified exit to Proximity Caves 15500 | -5/Warlord | Entered Proximity Caves 15521 | -4/Proximity Caves | Lost 4 allies 15533 | -4/Proximity Caves | Attracted the attention of an 0b10 outpost 15605 | -4/Proximity Caves | Joined by bewildered Wizard 15606 | -4/Proximity Caves | Joined by bewildered Wizard 15681 | -4/Proximity Caves | Joined by bewildered Wizard 15682 | -4/Proximity Caves | Joined by bewildered Wizard 15684 | -4/Proximity Caves | Joined by bewildered Wizard 15725 | -4/Proximity Caves | Spotted B-86 Titan 15778 | -4/Proximity Caves | Discovered exit to Factory (range 6) 15785 | -4/Proximity Caves | Entered Factory 15785 | -4/Factory | Accompanied by 3 allies 15785 | -4/Factory | Evolved 2 slots: Power x1, Propulsion x1 15786 | -4/Factory | Identified exit to Research 15786 | -4/Factory | Identified Vortex Chain Reactor 15829 | -4/Factory | Garrison activated, responded to threat 15854 | -4/Factory | Identified exit to Upper Caves 15854 | -4/Factory | Identified exit to Armory 15955 | -4/Factory | Central database locked down 15989 | -4/Factory | Loaded intel: 8 recycling unit locations 16058 | -4/Factory | Spotted B-86 Titan 16112 | -4/Factory | Repaired Mak. Ablative Armor 16256 | -4/Factory | Fabricated Antigrav Array (x1) 16287 | -4/Factory | Fabricated Cmb. Linear Gravjet (x2) 16430 | -4/Factory | Discovered exit to Research (range 16) 16526 | -4/Factory | Sucked down chute 16526 | -4/Factory | Entered Waste 16541 | -4/Waste | Spotted C-40 Crusher 16548 | -4/Waste | Spotted C-40 Crusher 16552 | -4/Waste | Spotted C-40 Crusher 16554 | -4/Waste | Spotted C-40 Crusher 16557 | -4/Waste | Spotted C-40 Crusher 16562 | -4/Waste | Spotted C-40 Crusher 16574 | -4/Waste | Warlord forces began an assault 16581 | -4/Waste | Allies destroyed C-40 Crusher 16592 | -4/Waste | Destroyed C-40 Crusher 16594 | -4/Waste | Allies destroyed C-40 Crusher 16596 | -4/Waste | Allies destroyed C-40 Crusher 16601 | -4/Waste | Allies destroyed C-40 Crusher 16602 | -4/Waste | Allies destroyed C-40 Crusher 16627 | -4/Waste | Lost 6 allies 16777 | -4/Waste | Discovered new exit (range 12) 16798 | -4/Waste | Identified exit to Factory 16824 | -4/Waste | Entered Factory 16824 | -4/Factory | Accompanied by 11 allies 16856 | -4/Factory | Loaded intel: 8 recycling unit locations 16970 | -4/Factory | Destroyed 7 combat bots 16970 | -4/Factory | Lost 6 allies 16984 | -4/Factory | Discovered exit to Upper Caves (range 6) 17112 | -4/Factory | Repaired Tri-rail Accelerator 17185 | -4/Factory | Lost 4 allies 17321 | -4/Factory | Fabricated Tri-rail Accelerator (x1) 17418 | -4/Factory | Fabricated Cmb. Linear Gravjet (x2) 17470 | -4/Factory | Entered Upper Caves 17492 | -4/Upper Caves | Learned Research emergency access door positions 17650 | -4/Upper Caves | Learned location of Quarantine (-2) 17651 | -4/Upper Caves | Discovered new exit (range 5) 17652 | -4/Upper Caves | Identified exit to Upper Caves 17654 | -4/Upper Caves | Entered another Upper Caves area 17660 | -4/Upper Caves | Discovered exit to Research (range 7) 17791 | -4/Upper Caves | Encountered a Warlord checkpoint 17824 | -4/Upper Caves | Learned Research emergency access door positions 17838 | -4/Upper Caves | Discovered new exit (range 12) 17849 | -4/Upper Caves | Identified exit to Zhirov 17885 | -4/Upper Caves | Entered Zhirov 17885 | -4/Zhirov | Discovered new exit (range 3) 17893 | -4/Zhirov | Met Zhirov 17900 | -4/Zhirov | Learned location of Command (-1) 17903 | -4/Zhirov | Zhirov requested help retrieving the SGEMP Prototype 17910 | -4/Zhirov | Found Alien Artifact 17910 | -4/Zhirov | Identified Integrated Dissipator 17910 | -4/Zhirov | Installed Integrated Dissipator, increased core heat dissipation (+20) 17925 | -4/Zhirov | Found Alien Artifact 17953 | -4/Zhirov | Identified exit to Proximity Caves 17953 | -4/Zhirov | Entered Proximity Caves 18008 | -3/Proximity Caves | Attracted the attention of an 0b10 checkpoint 18139 | -3/Proximity Caves | Attracted the attention of an 0b10 outpost 18221 | -3/Proximity Caves | Discovered exit to Research (range 6) 18223 | -3/Proximity Caves | Entered Research 18223 | -3/Research | Evolved 2 slots: Propulsion x1, Utility x1 18386 | -3/Research | Discovered new exit (range 5) 18387 | -3/Research | Identified exit to Testing 18430 | -3/Research | Entered Testing 18441 | -3/Testing | Found Prototype Processor 18451 | -3/Testing | Identified Exp. Terrain Scan Processor 18520 | -3/Testing | Build established: Machinist-Scout 18588 | -3/Testing | Found Prototype Processor 18588 | -3/Testing | Identified Exp. Targeting Computer 18620 | -3/Testing | Repaired Exp. Propulsion Shielding 18673 | -3/Testing | Spotted PG-W8FEYNHC2P 18688 | -3/Testing | Found Exp. Signal Interpreter 18708 | -3/Testing | Found Prototype Device 18708 | -3/Testing | Identified 2N-1CE's Frost Array 18724 | -3/Testing | Discovered new exit (range 11) 18746 | -3/Testing | Found Prototype Ballistic Gun 18768 | -3/Testing | Protovariant out of control (PG-W8FEYNHC2P) 18768 | -3/Testing | Unleashed a protovariant (PG-W8FEYNHC2P) 18812 | -3/Testing | Identified exit to Research 18813 | -3/Testing | Entered Research 18813 | -2/Research | Evolved 2 slots: Propulsion x1, Utility x1 18815 | -2/Research | Attached Gun Armor, gained temporary slots: Weapon x2 19052 | -2/Research | Spotted B-90 Cyclops 19098 | -2/Research | Loaded intel: 5 recycling unit locations 19110 | -2/Research | Garrison activated, responded to threat 19135 | -2/Research | Discovered new exit (range 18) 19153 | -2/Research | Identified exit to Quarantine 19153 | -2/Research | Entered Quarantine 19162 | -2/Quarantine | Found Alien Slashing Weapon 19162 | -2/Quarantine | Identified Sigix Broadsword 19178 | -2/Quarantine | Cryocooling Duct disabled 19193 | -2/Quarantine | Ambient heat levels rising (+20) 19193 | -2/Quarantine | Non-combat units ordered to evacuate 19294 | -2/Quarantine | Identified Hyp. Multirail 19297 | -2/Quarantine | Found Alien Artifact 19298 | -2/Quarantine | Identified Subatomic Replicator 19298 | -2/Quarantine | Used Subatomic Replicator to replicate Hyp. Multirail 19335 | -2/Quarantine | Found Alien Artifact 19372 | -2/Quarantine | Found Alien Artifact 19373 | -2/Quarantine | Identified Dimensional Node Initializer 19373 | -2/Quarantine | Initialized slip node 19375 | -2/Quarantine | Identified Transdimensional Reconstructor 19375 | -2/Quarantine | Warped through subspace to slip node 19377 | -2/Quarantine | Found Transdimensional Reconstructor 19380 | -2/Quarantine | Found Dimensional Node Initializer 19386 | -2/Quarantine | Discovered new exit (range 24) 19397 | -2/Quarantine | Identified exit to Access 19458 | -2/Quarantine | Spotted Fortress 19479 | -2/Quarantine | Discovered new exit (range 6) 19479 | -2/Quarantine | Discovered new exit (range 7) 19481 | -2/Quarantine | Identified exit to Section 7 19482 | -2/Quarantine | Identified exit to Protoforge 19482 | -2/Quarantine | Entered Protoforge 19516 | -2/Protoforge | Superfortress began startup sequence 19601 | -2/Protoforge | Identified Terrabomb 19601 | -2/Protoforge | Used Terrabomb 19605 | -2/Protoforge | Spotted EXE-6 19605 | -2/Protoforge | Spotted EXE-6 19610 | -2/Protoforge | Spotted Overlord 19611 | -2/Protoforge | Spotted SKR-2 19613 | -2/Protoforge | Spotted SKR-2 19614 | -2/Protoforge | Spotted SKR-2 19627 | -2/Protoforge | UFD initiated attack on Protoforge (Readiness: High) 19627 | -2/Protoforge | Loaded intel: 3 recycling unit locations 19637 | -2/Protoforge | Spotted EXE-6 19637 | -2/Protoforge | Spotted EXE-6 19662 | -2/Protoforge | Found Prototype Ballistic Gun 19662 | -2/Protoforge | Identified Cep. XC Strikerail 19663 | -2/Protoforge | Optimus greeted in Protoforge 19672 | -2/Protoforge | Found Prototype Device 19672 | -2/Protoforge | Identified Exp. Kinecellerator 19677 | -2/Protoforge | Found Prototype Processor 19677 | -2/Protoforge | Identified Exp. Armor Integrity Analyzer 19699 | -2/Protoforge | Destroyed SKR-2 19707 | -2/Protoforge | Destroyed SKR-2 19732 | -2/Protoforge | Forge Plexus network access discovered 19750 | -2/Protoforge | Spotted Decapitator 19753 | -2/Protoforge | Spotted Decapitator 19753 | -2/Protoforge | Spotted Decapitator 19753 | -2/Protoforge | Spotted Decapitator 19753 | -2/Protoforge | Destroyed Decapitator 19787 | -2/Protoforge | Spotted AP7-3 19788 | -2/Protoforge | Spotted AP7-3 19792 | -2/Protoforge | Spotted Decapitator 19793 | -2/Protoforge | Spotted Decapitator 19793 | -2/Protoforge | Spotted Decapitator 19795 | -2/Protoforge | Destroyed 12 combat bots 19797 | -2/Protoforge | Spotted Decapitator 19797 | -2/Protoforge | Spotted Decapitator 19809 | -2/Protoforge | Destroyed AP7-3 19813 | -2/Protoforge | Destroyed AP7-3 19823 | -2/Protoforge | Met 7R-MNS 19826 | -2/Protoforge | UFD reported confirmed Drillbomb installation 19834 | -2/Protoforge | UFD reported confirmed Drillbomb installation 19835 | -2/Protoforge | Found Cep. XC Strikerail 19838 | -2/Protoforge | Destroyed Decapitator 19866 | -2/Protoforge | Lost 6 allies 19866 | -2/Protoforge | Found Prototype Processor 19866 | -2/Protoforge | Identified Exp. Target Analyzer 19886 | -2/Protoforge | Found Exp. Targeting Computer 19903 | -2/Protoforge | Found Cep. XC Strikerail 19906 | -2/Protoforge | Spotted Striker 19907 | -2/Protoforge | Spotted Striker 19916 | -2/Protoforge | Destroyed 11 combat bots 19968 | -2/Protoforge | Spotted Executioner 19974 | -2/Protoforge | Destroyed Executioner 19982 | -2/Protoforge | Spotted Executioner 20008 | -2/Protoforge | Found UFD Drillbomb 20025 | -2/Protoforge | Installed UFD Drillbomb at designated target 20025 | -2/Protoforge | UFD reported confirmed Drillbomb installation 20030 | -2/Protoforge | Spotted Striker 20032 | -2/Protoforge | Spotted Striker 20062 | -2/Protoforge | Found UFD Drillbomb 20082 | -2/Protoforge | Spotted Executioner 20082 | -2/Protoforge | Spotted Executioner 20113 | -2/Protoforge | Spotted Striker 20113 | -2/Protoforge | Spotted Striker 20127 | -2/Protoforge | Destroyed Striker 20132 | -2/Protoforge | Lost 5 allies 20139 | -2/Protoforge | P-80 Master assimilated allied 02F35-D 20198 | -2/Protoforge | Destroyed 11 combat bots 20221 | -2/Protoforge | Spotted Hotshot 20223 | -2/Protoforge | Spotted Hotshot 20228 | -2/Protoforge | Build established: Scavenger-Mutant 20229 | -2/Protoforge | Destroyed Hotshot 20235 | -2/Protoforge | Destroyed Hotshot 20256 | -2/Protoforge | UFD reported confirmed Drillbomb installation 20257 | -2/Protoforge | Installed UFD Drillbomb at designated target 20257 | -2/Protoforge | UFD reported confirmed Drillbomb installation 20261 | -2/Protoforge | UFD reported confirmed Drillbomb installation 20335 | -2/Protoforge | Found UFD Drillbomb 20358 | -2/Protoforge | Spotted Hotshot 20359 | -2/Protoforge | Spotted Hotshot 20399 | -2/Protoforge | Spotted Striker 20399 | -2/Protoforge | Installed UFD Drillbomb at designated target 20399 | -2/Protoforge | UFD reported confirmed Drillbomb installation 20401 | -2/Protoforge | Spotted Striker 20439 | -2/Protoforge | Found UFD Drillbomb 20445 | -2/Protoforge | Spotted Decapitator 20445 | -2/Protoforge | Spotted Hotshot 20446 | -2/Protoforge | Destroyed Decapitator 20446 | -2/Protoforge | Spotted Hotshot 20451 | -2/Protoforge | Spotted Decapitator 20453 | -2/Protoforge | Spotted Decapitator 20455 | -2/Protoforge | Destroyed Decapitator 20456 | -2/Protoforge | Spotted Decapitator 20462 | -2/Protoforge | Destroyed Decapitator 20480 | -2/Protoforge | Destroyed Overlord 20495 | -2/Protoforge | Found Exp. Active Sensor Suite 20508 | -2/Protoforge | Lost 9 parts (1p2n5u1w) 20525 | -2/Protoforge | Spotted Executioner 20525 | -2/Protoforge | Spotted Striker 20534 | -2/Protoforge | System corruption reached 10% 20560 | -2/Protoforge | Destroyed Striker 20576 | -2/Protoforge | Spotted Hotshot 20583 | -2/Protoforge | Spotted B-90 Cyclops 20602 | -2/Protoforge | Destroyed Executioner 20665 | -2/Protoforge | Destroyed B-90 Cyclops 20671 | -2/Protoforge | Lost 4 parts (1p2u1w) 20680 | -2/Protoforge | Found Exp. Core Analyzer 20686 | -2/Protoforge | Found Exp. Core Analyzer 20762 | -2/Protoforge | Spotted Hotshot 20762 | -2/Protoforge | Destroyed Hotshot 20768 | -2/Protoforge | Destroyed Hotshot 20784 | -2/Protoforge | Spotted Hotshot 20784 | -2/Protoforge | Spotted Hotshot 20784 | -2/Protoforge | Spotted Hotshot 20784 | -2/Protoforge | Spotted Hotshot 20787 | -2/Protoforge | Destroyed Hotshot 20787 | -2/Protoforge | Destroyed Hotshot 20790 | -2/Protoforge | Destroyed Hotshot 20790 | -2/Protoforge | Destroyed Hotshot 20819 | -2/Protoforge | Lost 3 parts (2n1u) 20820 | -2/Protoforge | Spotted Hotshot 20822 | -2/Protoforge | Spotted Hotshot 20822 | -2/Protoforge | Destroyed Hotshot 20823 | -2/Protoforge | Spotted Hotshot 20825 | -2/Protoforge | Spotted Hotshot 20831 | -2/Protoforge | Destroyed Hotshot 20831 | -2/Protoforge | Destroyed Hotshot 20834 | -2/Protoforge | Destroyed Hotshot 20861 | -2/Protoforge | Destroyed 15 combat bots 20878 | -2/Protoforge | Spotted Executioner 20879 | -2/Protoforge | Spotted Executioner 20880 | -2/Protoforge | Destroyed Executioner 20882 | -2/Protoforge | Spotted Executioner 20883 | -2/Protoforge | Spotted Executioner 20883 | -2/Protoforge | Destroyed Executioner 20886 | -2/Protoforge | Destroyed Executioner 20917 | -2/Protoforge | Discovered exit to Access (range 5) 20919 | -2/Protoforge | Destroyed 9 combat bots 20924 | -2/Protoforge | Found Prototype Device 20946 | -2/Protoforge | Build established: Scavenger-Skirmisher 20947 | -2/Protoforge | Destroyed Executioner 20952 | -2/Protoforge | Spotted Hotshot 20953 | -2/Protoforge | Spotted Hotshot 20955 | -2/Protoforge | Spotted Hotshot 20956 | -2/Protoforge | Destroyed Hotshot 20957 | -2/Protoforge | Spotted Hotshot 20959 | -2/Protoforge | Destroyed Hotshot 20959 | -2/Protoforge | Destroyed Hotshot 20962 | -2/Protoforge | Destroyed Hotshot 20977 | -2/Protoforge | Spotted Executioner 20977 | -2/Protoforge | Spotted Executioner 20977 | -2/Protoforge | Spotted Executioner 20977 | -2/Protoforge | Spotted Striker 20980 | -2/Protoforge | Destroyed Executioner 20983 | -2/Protoforge | Destroyed Striker 20989 | -2/Protoforge | Destroyed Executioner 20995 | -2/Protoforge | Destroyed Executioner 21002 | -2/Protoforge | Spotted Striker 21004 | -2/Protoforge | Spotted Striker 21007 | -2/Protoforge | Destroyed Striker 21010 | -2/Protoforge | Destroyed Striker 21028 | -2/Protoforge | Lost 3 parts (2n1u) 21043 | -2/Protoforge | Destroyed 27 combat bots 21043 | -2/Protoforge | Installed UFD Drillbomb at designated target 21043 | -2/Protoforge | UFD reported confirmed Drillbomb installation 21077 | -2/Protoforge | Destroyed Striker 21077 | -2/Protoforge | Spotted Striker 21077 | -2/Protoforge | Spotted Striker 21077 | -2/Protoforge | Spotted Striker 21080 | -2/Protoforge | Destroyed Striker 21084 | -2/Protoforge | Destroyed Striker 21090 | -2/Protoforge | Destroyed Striker 21091 | -2/Protoforge | Core integrity fell below 50% 21102 | -2/Protoforge | Spotted Executioner 21102 | -2/Protoforge | Spotted Executioner 21117 | -2/Protoforge | Destroyed 13 combat bots 21126 | -2/Protoforge | Lost 5 parts (3n2u) 21137 | -2/Protoforge | Destroyed Executioner 21140 | -2/Protoforge | Destroyed Executioner 21170 | -2/Protoforge | Destroyed 9 combat bots 21171 | -2/Protoforge | Found Exp. Core Analyzer 21182 | -2/Protoforge | UFD reported confirmed Drillbomb installation 21195 | -2/Protoforge | Spotted Executioner 21195 | -2/Protoforge | Destroyed Executioner 21198 | -2/Protoforge | Spotted Executioner 21205 | -2/Protoforge | Destroyed Executioner 21238 | -2/Protoforge | Destroyed Executioner 21254 | -2/Protoforge | Spotted Executioner 21258 | -2/Protoforge | Destroyed Executioner 21259 | -2/Protoforge | Lost 9 allies 21275 | -2/Protoforge | Installed UFD Drillbomb at designated target 21275 | -2/Protoforge | UFD reported confirmed Drillbomb installation 21276 | -2/Protoforge | UFD began Drillbomb countdown 21290 | -2/Protoforge | Destroyed 8 combat bots 21321 | -2/Protoforge | Spotted Immortal 21321 | -2/Protoforge | Spotted Immortal 21370 | -2/Protoforge | Lost 3 allies 21376 | *** | Defending 0bPrime! Last Messages --------------- 21368_ Immortal destroyed. 21369_ 0bP_NET: And S4-LTN's pet Recycler. I didn't mean it, but I was short on matter and it was a natural reflex. 21369_ Acquired 39 matter. 21370_ 0bP_NET: Oh yeah, T-6 by the way. 21371_ 0bP_NET: LU-1G1, we know you're out there, digging away, so no moment of silence needed for you. 21371_ Acquired Imp. Thunder Leg. 21372_ 0bP_NET: DD-05H though, you were a good one, we'll never forget the way you smashed your way west and just never stopped smashing. 21373_ 0bP_NET: Well my eulogizing is soon to be interrupted by scenes of half of Protoforge collapsing in on itself. Be careful out there. 21373_ Acquired 10 matter. 21374_ 0bP_NET: T-2! 21375_ 0bP_NET: And that's a wrap. [Achievement: Robotopia] Map ----- +----------------------------------------------------+ | # ##% % "? """""""???????????? | | [ !#! % % % "" """"""""????????? | | = "!!!# % /=*%! """"""""""???????"" | | [%" *=!#%= % !%[*= """""""""""????"""""" | | %!!%%%%%%%%= * % """""""""""""?""""""""" | | % %=%%%% %!! % """""""""""""""""""""""" | | %%[%%&%%%%%[%% """"""""""""""""""""""""" | | "!!*%% # %%= """"""""""""""""""""""""" | | ! %"" =# % % """"""""""""""""""""""""" | | %& # &% """""""""""""""""""""""""" | | ## # # % %% """""""""""""""""""""""""" | | ### ####% % """""""""""""""""""""""""" | | ## #?### % """""""""""""""""""""""""" | | ? ##??## % % %% = """""""""""""""""""""""""" | | ####### [=% %= """""""""""""""""""""""""" | | ######## %=!% """""""""""""""""""""""""" | | ## ## = %% """""""""""""""""""""""""" | | ## "" ## %% %%"""""""""""""""""""""""""" | | ## "" ## % % %""""""""""""""""""""""""" | | ## "" ## | % """"""""""""""""""""""""" | | + S ## ! %% """"""""""""""""""""""""" | | " "" "# [ s"""""""""""""""""""""""" | | " "" "# %""""""""""""""""""""""" | | + "" "# % %% """"""""""""""""""""" | | "" "# %% % %""""""""""""""""""" | | """"""# % /* @%! """"""""""""""""" | | #% % " !%! %! """"""""""""""" ""% | | "" # # %" !!! ! s E """"""""" "" | | " % # " """ "" ""% | | " ] # " " """ " "s""" " | | [=# #% " """ E " " | | " #=#!# " """" """" | | %" # " " % " " """ "s" "" %"""" | | %# # " " " """" "% | | =" # " % " " """ s " " | | %" " "" % % " " " % = " % % | | !" " " % "" j % " """" | | " =! " "" % " """"" "" """ " | | " " " " %% | | % " "" "" E % % | | %"% % " "" % %%% """""""""" | | " %" "" " """"" "" " | | """""%" """ " " " % "" """"""" " | | % % %%"" """"" ################################# | | " " """########????????????????????????? | | " %" #######?#???????????????????????# | | " " ##?###??????????????????????????# | | "% # ###########??????????????????????# | | % " ####?#####????????????????????????# | | " ##########?#??????????????????????# | +----------------------------------------------------+ Best States ------------- Heat Dissipation 195 Energy Generation 55 Energy Capacity 825 Matter Stores 300 Matter Capacity 300 Sight Range 23 Robot Scan Range 20 Terrain Scan Range 24 Terrain Scan Density 1010 ECM Strength 1 Cloak Strength 4 Power Amplification 20 Additional Mass Support 9 Armor Coverage 800 Propulsion Shielding 90 Weapon Shielding 100 Phase Shifting 15 Evasion (%) 81 Targeting Accuracy 24 Melee Accuracy 8 Target Analysis 14 Core Analysis 12 Armor Integrity Analysis 50 Recoil Reduction 2 Kinecelleration 66 Salvage Targeting 4 Offensive Hacking 38 Defensive Hacking 14 Authchip Count 1 Trap Extractor Capacity 6 Item Schematics ----------------- Tri-rail Accelerator | -5/Factory | Hacked Cmb. Linear Gravjet | -5/Factory | Downloaded Hvy. Machine Gun | -4/Factory | Extracted Shield Generator | -4/Factory | Extracted Hpw. Shock Rifle | -4/Factory | Extracted Lgt. Antimatter Cannon | -4/Factory | Extracted EM Shield | -4/Factory | Extracted Imp. Linear Gravjet | -4/Factory | Extracted Adv. Plasma Cannon | -4/Factory | Extracted Neutrino Core | -4/Factory | Extracted Assault Drone Bay | -4/Zhirov | Free Exp. Heat Sink | -4/Zhirov | Free Exp. Optical Array | -4/Zhirov | Free Imp. Arc Thrower | -4/Zhirov | Free Robot Schematics ------------------ M-13 Machinist | -10/Materials | Hacked Fabricated ------------ Tri-rail Accelerator | x1 | -5/Factory | Authchip Cmb. Linear Gravjet | x2 | -5/Factory | Authchip Antigrav Array | x1 | -4/Factory | Preloaded Cmb. Linear Gravjet | x2 | -4/Factory | Authchip Tri-rail Accelerator | x1 | -4/Factory | Authchip Cmb. Linear Gravjet | x2 | -4/Factory | Authchip Repaired ---------- Flight Unit | 50% | -10/Materials Mak. Ablative Armor | 31% | -4/Factory Tri-rail Accelerator | 41% | -4/Factory Exp. Propulsion Shielding | 18% | -3/Testing Studied --------- Lrn. Missile Launcher | -4/Factory | Hacked Cmb. Linear Gravjet | -3/Research | Hacked Com. HERF Cannon | -2/Research | Hacked Alien Tech Used ----------------- Integrated Dissipator Sigix Broadsword Subatomic Replicator Dimensional Node Initializer Transdimensional Reconstructor Terrabomb Achievements -------------- Anti-science Crusade Deadly Precision Fancy Inventory Fine I'll Do It Myself Hulk Smash Inventory(Loot) Longdome?! Loot Taster Nope Physics Protects Rampage Robotopia Rodney's Helpers Some Acronyms Are Better Than Others Super-what Now? We Are One Challenges ------------ None Game ------ Seed ReactionPhaseWall Manual? 0 Play Time 08:32:29 Cumulative 188.8 hours Start 2025.11.07 @ 18:33:48 End 2025.11.08 @ 23:56:55 Sessions 17 Manual Loads 0 Difficulty Rogue Special Mode None Game No. 85 Rogue 80 Adventurer 5 Explorer 0 Win Type 9 Total 5 Types 3/0/0/1/0/0/0/0/0/1 Lore% 63 Gallery% 65 Achievement% 48 Wizard Run 0 Options --------- Layout 1 ASCII 0 Keyboard 0 Movement Numpad Keybinds 0 Fullscreen 1 Font 24/Smallcaps Map View 50x35 Zoom Use 0% Tactical HUD 1 Map Filters NONE Filters NONE Steam 1 RUN: a69a1cac-65f8-42ef-9686-364549bb058a